{"text_format":"1","workbook":"xlsx","n_sheets":6,"sheets":["Instrukcja","JPK","PKPIR","Zest_roczne","G","A"],"not_rendered":{"charts":0,"images":46,"macros":1,"external_links":0,"defined_names":4,"comments":0,"pivot_tables":0},"unopened":[],"bounds":{"document_bytes":16777216,"sheet_cells":100000,"rows_first":2000,"rows_last":500,"rows_between":2000,"halvings":0,"cell_chars":16384,"cell_head_chars":4096},"cells_cut":0,"cells_raw":0,"read":"whole","date_system":"1900"}

{"sheet":"Instrukcja","index":0,"n_rows":174,"n_cols":19,"rows_kept":174,"cut":false,"hidden":false,"merged":[[112,14,112,15],[112,16,112,17],[112,18,112,19],[113,6,113,13],[112,6,112,7],[112,8,112,9],[112,10,112,11],[112,12,112,13],[64,0,64,2],[0,1,0,11],[15,3,17,3],[19,3,21,3],[49,3,51,3],[54,3,56,3]]}
[null,"Instrukcja obsługi programu do JPK_PKPIR(3)"]
[]
[null,"Program służy do wygenerowania pliku w formacie XML zawierającego dane o środkach trwałych i wartościach"]
[null,"niematerialnych i prawnych, który przesyłany jest do urzędu skarbowego."]
[]
[]
[]
[]
[]
[]
[]
[]
[]
[]
[]
[null,null,null,"-","Ten przycisk służy do zaimportowania danych z innego pliku JPK_PKPIR(3)"]
[null,null,null,null,"utworzonego w innym okresie rozliczeniowym lub w innym programie."]
[null,null,null,null,"Można importować więcej plików, dane z których zostaną dopisane w Ewidencji (scalanie)."]
[]
[null,null,null,"-","Po przygotowaniu kompletnych danych tym przyciskiem utworzysz plik XML"]
[null,null,null,null,"w formacie wymaganym przez urząd skarbowy. Przed utworzeniem pliku XML"]
[null,null,null,null,"uruchamiana jest procedura sprawdzania kompletności wprowadzonych danych."]
[null,"Wypełnij wszystkie wymagane pola na arkuszu JPK"]
[null,"Urząd skarbowy znajdziesz wpisując fragment nazwy."]
[]
[]
[]
[]
[]
[]
[]
[]
[null,"Znaczenie przycisków"]
[]
[]
[]
[]
[]
[null,null,null,"-",null,"zaznacz komórkę i kliknij Wstaw wiersz co utworzy nad nią pusty wiersz. Kliknięcie Usuń wiersz usunie zaznaczony wiersz."]
[]
[]
[]
[null,null,null,null,null,null,null,null,null,null,null,null,null,"- wstawiony wiersz"]
[]
[]
[null,null,null,null,"Uruchamia import faktur KSEF. Zapisz do jednego foldera własne faktury sprzedaży KSEF oraz faktury zakupu KSEF np. do C:/KSEF"]
[null,null,null,null,"Program wyszuka faktury tylko ze wskazanego przy imporcie miesiąca i wstawi je do księgi podatkowej chronologicznie."]
[null,null,null,null,"Importować można wszystkie faktury z folderu, pojedyncze wybrane faktury KSEF, wszystkie faktury upakowane w wybranym do importu pliku ZIP."]
[]
[null,null,null,"-","Uruchamia procedurę sprawdzania poprawności i kompletności wprowadzonych danych."]
[null,null,null,null,"Naprawia też formatowanie komórek uszkodzonych przez wklejanie danych inne niż specjalne wklejanie wartości."]
[null,null,null,null,"Znalezienie błędu lub braku wymaganych danych zatrzyma sprawdzanie i zaznaczy tą komórkę."]
[null,null,null,null,"Przelicza kolumny K_9 i K_14, poprawia kolejność numeracji w K_1 i za zgodą użytkownika sortuje księgę chronologicznie."]
[]
[null,null,null,"-","Uruchamia import danych z różnego rodzaju źródeł, którymi mogą być pliki w formacie csv, txt, xml, xlsx, dbf, ods."]
[null,null,null,null,"Można importować więcej plików, dane z których zostaną dopisane do ewidencji (scalanie)."]
[]
[]
[null,null,null,null,"Pozostałe pliki powinny zawierać dane uporządkowane tabelarycznie. Csv, dbf i txt powinny zawierać dane rozdzielone znakami  ; , lub tab."]
[null,null,null,null,"Jeżeli dane zawierają nagłówek oznaczony kodami K_1 K_2 K_3 itd. jak w wierszu 3  to import wykona się automatycznie."]
[null,null,null,null,"W innych przypadkach dane otworzą się jako arkusz gdzie trzeba zaznaczyć pierwszą lewą komórkę i nacisnąć klawisz funkcyjny F5."]
[]
[null,null,null,null,"Import danych na arkuszach kalkulacyjnych xlsx i ods dokonywany jest na dwa sposoby."]
[null,null,null,null,"Jeżeli dane zawierają nagłówek oznaczony kodami D_1 D_2 D_3 itd. jak w wierszu 3 Ewidencji środków"]
["Wiersz 3 Ewidencji"]
[null,null,null,null,"to import wykona się automatycznie. Kolejność i kompletność oznaczeń nagłówka importowanych danych nie jest wymagana ale K_1 jest obowiązkowy."]
[]
[]
["Przykład importowanego arkusza"]
[]
[]
[]
[null,null,null,null,"Jeżeli dane nie zawierają tych nagłówków to import jest możliwy wyłącznie pod warunkiem identycznej kolejności kolumn importowanych danych z Ewidencją."]
[]
[]
["Przykład importowanego arkusza"]
[]
[null,null,null,null,"Przy tym rodzaju importu w jego trakcie otworzy się importowany arkusz, gdzie trzeba zaznaczyć myszką pierwszą lewą komórkę (w ww. przykładzie A1)"]
[null,null,null,null,"i nacisnąć klawisz funkcyjny F5 aby zakończyć import."]
[null,null,null,null,"Ważne!"]
[null,null,null,null,"Powyższe metody importu przenoszą dane tekstowo co zabezpiecza je przed automatyczną zmianą przez Excela. Dotyczy to zwłaszcza transformacji daty!"]
[null,null,null,null,"Przy zwykłym wklejaniu Excel może automatycznie zmienić datę na format amerykański np. 12-05-2024 na 05-12-2024."]
[]
[null,"Zestawienie roczne - kliknij przycisk aby zaktualizować dane z księgi podatkowej"]
[]
[]
[]
[]
[]
[]
[]
[]
[]
[]
[null,"Zaliczki na podatek"]
[]
[]
[]
[null,null,null,null,"Za pomocą dodatkowego kalkulatora do pobrania ze strony producenta jednym kliknięciem oblicz zaliczki na podatek."]
[]
[null,"Autouzupełnianie"]
[]
[]
[]
[]
[]
[]
[]
[null,null,null,null,"Do działania autouzupełniania potrzebne są 2 pliki _Firmy.xls i Info.xls, które za Twoją zgodą program pobierze z serwera dostawcy programu."]
[null,null,null,null,"Autouzupełnanie pomaga automatycznie wypełnić pola NIP, Kontrahent, Adres i Opis zdarzenia gospodarczego przy użyciu bazy Firm zapisanej w oddzielnym pliku xls."]
[null,null,null,null,"Kiedy w pustej komórce kolumny K_4B naciśniesz Enter to wtedy otworzy się wykaz firm do wyboru."]
[null,null,null,null,"Na początku wykaz będzie pusty. Dokonaj pierwszego wpisu naciskając klawisz Insert, wpisz"]
[null,null,null,null,null,null,"1 kolumna - NIP",null,"2 kol. Nazwa Firmy",null,"3 kol. Adres",null,"4 kol. Opis",null,"5 kol. Kod PKPiR",null,"6. kol. Kod JPK_V7M",null,"to są kody kolumn"]
[null,null,null,null,null,null,"po każdym wpisie naciśnij na klawiaturze strzałkę w prawo Myszka nie działa!",null,null,null,null,null,null,null,"Jak nic nie wpiszesz to domyślnie będzie K_13 pozostałe koszty"]
[null,null,null,null,null,null,null,null,null,null,null,null,null,null,"Ten kod wskaże którą komórkę zaznaczyć po wybraniu firmy."]
[]
[]
[]
[]
[]
[]
[]
[]
[]
[null,null,null,null,null,null,"Po zakończeniu wpisu naciśnij Enter aby zapisać firmę do Wykazu alfabetycznie i dokonać wpisu do podatkowej księgi."]
[null,null,null,null,null,null,"Obok Wykazu firm wyświetli się też ściągawka z firmami do szybkiego wyboru oraz krótka instrukcja "]
[]
[null,null,null,null,null,null,null,null,null,"Okienko Szukaj to jest tryb wyszukiwania, w którym niżej wymienione klawisze uruchamiają przypisane działanie."]
[]
[]
[]
[]
[]
[]
[]
[]
[]
[]
[null,null,null,null,null,null,"Wykaz firm zamkniesz klawiszem ENTER lub dwukrotnie ESC"]
[]
[null,"Wyszukiwanie w Wykazie firm"]
[null,null,null,null,"Naciśnij Enter w pustej komórce kolumny K_4B"]
[null,null,null,"1.","Wpisz pierwszą literę i następne litery z nazwy szukanej firmy - po zaznaczeniu szukanej nazwy naciśnij ENTER"]
[null,null,null,"2.","Używaj strzałek w górę, w dół, klawiszy PageUp, PageDown - po zaznaczeniu szukanej nazwy naciśnij ENTER"]
[null,null,null,"3.","Jeżeli do nazwy firmy przypisano cyfrę - naciśnij na klawiaturze numerycznej (z prawej strony) właściwą cyfrę."]
[null,null,null,"4.","Jeżeli do nazwy firmy przypisano literę - naciśnij na klawiaturze tą literę i naciśnij ENTER"]
[null,null,null,"5.","Naciśnij klawisz TAB i szukaj po numerze NIP - po zaznaczeniu szukanej nazwy naciśnij ENTER"]
[null,null,null,"6.","Naciśnij klawisz BACKSPACE aby uruchomić nowe szukanie od pierwszej litery nazwy firmy."]
[]
[null,"Import KSEF"]
[]
[null,null,null,null,null,"Tym przyciskiem uruchomisz import faktur KSEF."]
[]
[null,null,null,null,null,null,null,null,null,null,null,null,"Możesz przechowywać wszystkie faktury KSEF sprzedaży rejestrowanych w Ewidencji"]
[null,null,null,null,null,null,null,null,null,null,null,null,"jak i faktury zakupu KSEF w jednym forlderze np. C:/KSEF/"]
[]
[null,null,null,null,null,null,null,null,null,null,null,null,"Jeżeli zaznaczysz Domyślnie to przy następnym imporcie nie pokaże się już okno do wyboru"]
[null,null,null,null,null,null,null,null,null,null,null,null,"folderu, w którym są faktury KSEF."]
[]
[null,null,null,null,null,null,null,null,null,null,null,"1.","Zaznaczenie tej opcji uruchomi wyszukiwanie faktur sprzedaży KSEF dokumentujących uzyskanie"]
[null,null,null,null,null,null,null,null,null,null,null,null,"przychodu w wybranym miesiącu."]
[null,null,null,null,null,null,null,null,null,null,null,"2.","Faktury KSEF mogą być spakowane w pliku ZIP. Program je rozpakuje fo folderu TEMP i zaimportuje"]
[null,null,null,null,null,null,null,null,null,null,null,null,"z uwzględnieniem zaznaczonego okresu (wybrany miesiąc i rok)."]
[null,null,null,null,null,null,null,null,null,null,null,"3.","Opcją niebiesko zaimportujesz każdą fakturę, bez względu na wystawcę i datę jej wystawienia."]
[]
[null,null,null,null,null,null,null,null,null,null,null,null,"Po raz pierwszy faktury zakupowe zaimportowane zostaną jako zakup towaru (K_10)"]
[null,null,null,null,null,null,null,null,null,null,null,null,null,null,null,"tym przyciskiem przeniesiesz koszt do innej zaznaczonej komórki."]
[null,null,null,null,null,null,null,null,null,null,null,null,"Jeżeli zaznaczysz kwadrat jak na rysunku to przy następnym imporcie np. w następnym miesiącu"]
[null,null,null,null,null,null,null,null,null,null,null,null,"program po NIP sprawdzi do jakich kosztów zaksięgowano zakup poprzednio z tej samej firmy (NIP)"]
[null,null,null,null,null,null,null,null,null,null,null,null,"i od razu wstawi kwotę do odpowiedniej kolumny."]
[]
[null,null,null,null,null,null,null,null,null,null,null,null,"Możesz importować oddzielnie faktury KSEF sprzedaży i zakupu, które mogą znajdować się"]
[null,null,null,null,null,null,null,null,null,null,null,null,"w innych folderach. Po zaksięgowaniu wszystkich operacji uruchom przycisk Sprawdź, który"]
[null,null,null,null,null,null,null,null,null,null,null,null,"zaproponuje posortowanie księgi chronologicznie."]

{"sheet":"JPK","index":1,"n_rows":145,"n_cols":29,"rows_kept":145,"cut":false,"hidden":false,"merged":[[51,4,51,12],[47,4,47,12],[59,10,59,23],[51,13,51,23],[56,2,56,23],[55,3,55,18],[48,13,48,23],[55,19,55,23],[52,4,52,12],[52,13,52,23],[53,4,53,12],[53,13,53,23],[49,13,49,23],[0,0,0,12],[0,13,0,24],[8,12,8,20],[22,2,22,23],[13,4,13,9],[14,4,14,9],[13,10,13,16],[2,1,2,24],[19,3,19,23],[16,2,16,23],[11,2,11,23],[15,10,15,16],[15,17,15,19],[15,2,15,3],[15,4,15,9],[14,10,14,16],[15,20,15,23],[17,3,17,23],[20,10,20,16],[20,17,20,23],[8,2,8,11],[6,2,6,23],[13,2,14,3],[7,12,7,13],[29,3,29,10],[29,11,29,16],[29,17,29,23],[30,3,30,12],[30,13,30,23],[18,3,18,23],[21,2,21,23],[1,0,1,12],[1,13,1,24],[10,2,10,24],[20,4,20,7],[26,3,26,23],[27,3,27,23],[28,3,28,23],[24,3,24,23],[25,7,25,13],[25,15,25,23],[23,2,23,23],[3,1,3,24],[4,2,4,23],[5,2,5,23],[7,21,7,23],[8,21,8,23],[7,2,7,11],[7,14,7,20],[12,2,12,3],[9,2,9,7],[9,8,9,23],[12,4,12,16],[12,17,12,19],[12,20,12,23],[70,1,70,24],[61,2,61,18],[38,3,38,18],[39,3,39,18],[40,3,40,18],[42,3,42,18],[38,19,38,23],[39,19,39,23],[40,19,40,23],[42,19,42,23],[41,3,41,18],[41,19,41,23],[61,19,61,22],[46,13,46,23],[48,4,48,12],[54,4,54,12],[49,4,49,12],[63,1,63,24],[50,4,50,12],[50,13,50,23],[54,13,54,23],[47,13,47,23],[31,3,31,12],[31,13,31,23],[32,2,32,23],[33,2,33,23],[34,3,34,23],[35,15,35,23],[37,2,37,23],[36,2,36,23],[58,3,58,9],[59,3,59,9],[43,13,43,23],[43,3,43,12],[44,4,44,12],[44,13,44,23],[45,4,45,12],[45,13,45,23],[46,4,46,12],[58,10,58,23],[57,2,57,23]]}
[null,null,null,null,null,null,null,null,null,null,null,null,null,null,null,null,null,null,null,null,null,null,null,null,null,null,1,1,"K_1"]
["Uruchamianie przycisków i opcji wymaga włączenia makro",null,null,null,null,null,null,null,null,null,null,null,null,"INSTRUKCJA",null,null,null,null,null,null,null,null,null,null,null,null,1,2,"K_2"]
[null,null,null,null,null,null,null,null,null,null,null,null,null,null,null,null,null,null,null,null,null,null,null,null,null,null,0,3,"K_3A"]
[null,null,null,null,null,null,null,null,null,null,null,null,null,null,null,null,null,null,null,null,null,null,null,null,null,null,null,4,"K_3B"]
[null,null,"  POLA JASNE WYPEŁNIA PODATNIK, WYPEŁNIĆ KOMPUTEROWO DUŻYMI LITERAMI",null,null,null,null,null,null,null,null,null,null,null,null,null,null,null,null,null,null,null,null,null,null,null,null,5,"K_4A"]
[null,null,"                 Składanie JPK wyłącznie w wersji elektronicznej",null,null,null,null,null,null,null,null,null,null,null,null,null,null,null,null,null,null,null,null,null,null,null,null,6,"K_4B"]
[null,null,null,null,null,null,null,null,null,null,null,null,null,null,null,null,null,null,null,null,null,null,null,null,null,null,null,7,"K_5A"]
[null,null," 1. Numer Identyfikacji Podatkowej",null,null,null,null,null,null,null,null,null," 2. Nr dokumentu",null,null,null,null,null,null,null,null," 3. Status",null,null,null,null,null,8,"K_5B"]
[null,null,null,null,null,null,null,null,null,null,null,null,null,null,null,null,null,null,null,null,null,null,null,null,null,null,null,9,"K_6"]
[null,null,"  JPK_PKPIR(3)",null,null,null,null,null,null,null,null,null,null,null,null,null,null,null,null,null,null,null,null,null,null,null,null,10,"K_7"]
[null,null,"WERSJA DEMONSTRACYJNA",null,null,null,null,null,null,null,null,null,null,null,null,null,null,null,null,null,null,null,null,null,null,null,null,11,"K_8"]
[null,null,"JEDNOLITY PLIK KONTROLNY\nDLA PODATKOWEJ KSIĘGI PRZYCHODÓW I ROZCHODÓW",null,null,null,null,null,null,null,null,null,null,null,null,null,null,null,null,null,null,null,null,null,null,null,null,12,"K_9"]
[null,null,null,null,"za okres",null,null,null,null,null,null,null,null,null,null,null,null,null,null,null,null,null,null,null,null,null,null,13,"K_10"]
[null,null,null,null," 4. Od (dzień - miesiąc - rok)",null,null,null,null,null," 5. Do (dzień - miesiąc - rok)",null,null,null,null,null,null,null,null,null,null,null,null,null,null,null,null,14,"K_11"]
[null,null,null,null,1012026,null,null,null,null,null,31122026,null,null,null,null,null,null,null,null,null,null,null,null,null,null,null,null,15,"K_12"]
[null,null,null,null,null,null,null,null,null,null,null,null,null,null,null,null,null,null,null,null,null,null,null,null,null,null,null,16,"K_13"]
[null,null," A. MIEJSCE I CEL SKŁADANIA JPK",null,null,null,null,null,null,null,null,null,null,null,null,null,null,null,null,null,null,null,null,null,null,null,null,17,"K_14"]
[null,null,null," 6. Urząd skarbowy, do którego adresowany jest JPK",null,null,null,null,null,null,null,null,null,null,null,null,null,null,null,null,null,null,null,null,null,null,null,18,"K_15"]
[null,null,null,null,null,null,null,null,null,null,null,null,null,null,null,null,null,null,null,null,null,null,null,null,null,null,{"$f":"VLOOKUP(D19,G!I1:J400,2,FALSE)","v":{"$error":"#N/A"}},19,"K_16A"]
[null,null,null," 7. Cel złożenia  (zaznaczyć właściwy kwadrat):",null,null,null,null,null,null,null,null,null,null,null,null,null,null,null,null,null,null,null,null,null,null,null,20,"K_16B"]
[null,null,null,null,"1. złożenie JPK na żądanie",null,null,null,null,null," 2. złożenie JPK po raz pierwszy",null,null,null,null,null,null,"3. Złożenie korekty JPK",null,null,null,null,null,null,null,null,null,21,"K_17"]
[]
[null,null," B. DANE PODMIOTU"]
[null,null," B.1. DANE IDENTYFIKACYJNE"]
[null,null,null," 8. Rodzaj podmiotu (zaznaczyć właściwy kwadrat):"]
[null,null,null,null,null,null,null," 1. podmiot niebędący osobą fizyczną",null,null,null,null,null,null,null," 2. osoba fizyczna"]
[null,null,null," 9. Nazwa pełna podmiotu niebędącego osobą fizyczną"]
[]
[null,null,null," 10. Nazwisko i Imię pierwsze oraz data urodzenia osoby fizycznej"]
[]
[null,null,null," 11. Adres email (nieobowiązkowe)",null,null,null,null,null,null,null,null,null," 12. Numer telefonu (nieobowiązkowe)"]
[]
[]
[null,null," C. ZNACZNIK DLA PODATNIKA ROZLICZAJĄCEGO PODATEK METODĄ KASOWĄ"]
[null,null,null," 13. Kasowy PIT"]
[null,null,null,null,null,null,null,null,null,null,null,null,null,"1. tak"]
[]
[null,null," D. PODATKOWA KSIĘGA PRZYCHODÓW I ROZCHODÓW"]
[null,null,null," 14. Wartość spisu z natury na początek roku podatkowego"]
[null,null,null," 15. Wartość spisu z natury na koniec roku podatkowego"]
[null,null,null," 16. Razem koszty uzyskania przychodu, wg objaśnień do podatkowej księgi przychodów i rozchodów",null,null,null,null,null,null,null,null,null,null,null,null,null,null,null,{"$f":"SUM(PKPIR!M2:P2,PKPIR!R2,PKPIR!T2)+T39-T40","v":0}]
[null,null,null," 17. Łączna wartość przychodów razem (kol. 9) w PKPIR w okresie, którego dotyczy JPK_PKPIR",null,null,null,null,null,null,null,null,null,null,null,null,null,null,null,{"$f":"SUM(PKPIR!J2:K2)","v":0}]
[null,null,null," 18. Dochód osiągnięty w roku podatkowym, wg objaśnień do podatkowej księgi przychodów i rozchodów",null,null,null,null,null,null,null,null,null,null,null,null,null,null,null,{"$f":"T42-T41","v":0}]
[null,null,null," 19. Data spisu z natury sporządzonego w ciągu roku podatkowego",null,null,null,null,null,null,null,null,null," 20. Wartość spisu z natury sporządzonego w ciągu roku podatkowego"]
[null,null,null,"1."]
[null,null,null,"2."]
[null,null,null,"3."]
[null,null,null,"4."]
[null,null,null,"5."]
[null,null,null,"6."]
[null,null,null,"7."]
[null,null,null,"8."]
[null,null,null,"9."]
[null,null,null,"10."]
[null,null,null,"11."]
[null,null,null," 21. Liczba wierszy (zapisów) PKPIR, w okresie którego dotyczy JPK_PKPIR",null,null,null,null,null,null,null,null,null,null,null,null,null,null,null,{"$f":"PKPIR!A2","v":0}]
[]
[null,null," E. DATA SPORZĄDZENIA JPK"]
[null,null,null," 22. Data wytworzenia JPK (dzień - miesiąc - rok)",null,null,null,null,null,null," 23. Uwagi własne (niewysyłane)"]
[]
[]
[null,null,null,null,null,null,null,null,null,null,null,null,null,null,null,null,null,null,null,"JPK_PKPIR(3)",null,null,null,"1/1"]
[]
[null,"POBIERZ NAJNOWSZE WERSJE STRUKTUR JPK na 2026 r.\n\n"]
[]
[]
[]
[]
[]
[]
[]
[]
[]
[]
[]
[]
[]
[]
[]
[]
[]
[]
[]
[]
[]
[]
[]
[]
[]
[]
[]
[]
[]
[]
[]
[]
[]
[]
[]
[]
[]
[]
[]
[]
[]
[]
[]
[]
[]
[]
[]
[]
[]
[]
[]
[]
[]
[]
[]
[]
[]
[]
[]
[]
[]
[]
[]
[]
[]
[]
[]
[]
[]
[]
[]
[]
[]
[]
[]
[]
[]
[]
[]
[]
[null,null,null,null,1012026,null,null,null,null,null,null,null,null,1]

{"sheet":"PKPIR","index":2,"n_rows":3,"n_cols":24,"rows_kept":3,"cut":false,"hidden":false,"merged":[]}
["Lp.\n\n\n","\n\nData zdarzenia gospodar\nczego","\nNr dowodu księgowego","Numer identyfikujący fakturę wystawioną przy użyciu Krajowego Systemu e-Faktur (numer KSeF)","Kod kraju nadania identyfikatora podatko\nwego","Numer identyfikacji podatkowej kontrahenta","\nKontrahent - imię i nazwisko (firma)","\nKontrahent- adres","\nOpis zdarzenia gospodarczego","Przychód - wartość sprzedanych towarów i usług","Przychód - pozostałe przychody","Przychód - razem przychód","Zakup towarów handlowych i materiałów wg cen zakupu","Koszty uboczne zakupu ","Wydatki (koszty) - wynagrodzenia w gotówce i w naturze","Wydatki (koszty) - pozostałe wydatki","Wydatki (koszty) - razem wydatki (12+13)","Wydatki (koszty) - pole wolne w PLN","Koszty działalności badawczo-rozwojowej, o których mowa w art. 26e ustawy o podatku dochodowym - opis kosztu","Koszty działalności badawczo-rozwojowej, o których mowa w art. 26e ustawy o podatku dochodowym ","\nUwagi\n\n\n",null,null,0]
[{"$f":"COUNTA(A4:A1048576)","v":0},null,null,null,null,null,null,null,null,{"$f":"SUM(J4:J1048576)","v":0},0,0,0,0,0,0,0,0,null,{"$f":"SUM(T4:T1048576)","v":0}]
["K_1","K_2","K_3A","K_3B","K_4A","K_4B","K_5A","K_5B","K_6","K_7","K_8","K_9","K_10","K_11","K_12","K_13","K_14","K_15","K_16A","K_16B","K_17"]

{"sheet":"Zest_roczne","index":3,"n_rows":130,"n_cols":24,"rows_kept":130,"cut":false,"hidden":false,"merged":[[59,5,59,8],[3,1,3,12],[4,1,4,12],[6,1,9,1],[6,2,9,2],[51,1,51,12],[52,1,52,12],[53,1,53,12],[54,1,54,12],[55,1,55,12],[71,5,71,8],[60,5,60,8],[61,5,61,8],[62,5,62,8],[63,5,63,8],[64,5,64,8],[65,5,65,8],[66,5,66,8],[67,5,67,8],[68,5,68,8],[69,5,69,8],[70,5,70,8],[83,5,83,8],[72,5,72,8],[73,5,73,8],[74,5,74,8],[75,5,75,8],[76,5,76,8],[77,5,77,8],[78,5,78,8],[79,5,79,8],[80,5,80,8],[81,5,81,8],[82,5,82,8],[91,2,91,10],[129,2,129,10],[84,5,84,8],[85,5,85,8],[86,5,86,8],[87,5,87,8],[88,5,88,8]]}
[]
[]
[]
[null,"Zestawienie roczne"]
[null,{"$f":"\"rok \"&RIGHT(JPK!K15,4)","v":"rok 2026"}]
[]
[null,"Lp.","Miesiąc",null,"Przychód",null,"Zakup tow.","Koszty","","     Wydatki (koszty)",null,null,"Koszty"]
[null,null,null,"wartość","pozostałe","razem","handlowych","uboczne","wynagrodzenia","pozostałe","razem",null,"działalności"]
[null,null,null,"sprzedanych","przychody","przychód","i materiałów","zakupu","w gotówce","wydatki","wydatki",null,"badawczo-"]
[null,null,null,"towarów i usł."," ","(7+8)","wg cen zak.",null,"i w naturze",null,"(12+13)",null,"rozwojowej"]
[null,null,null,"9","10","11","12","13","14","15","16","17","18"]
[null,1,"styczeń"]
[null,2,"luty"]
[null,3,"marzec"]
[null,4,"kwiecień"]
[null,5,"maj"]
[null,6,"czerwiec"]
[null,7,"lipiec"]
[null,8,"sierpień"]
[null,9,"wrzesień"]
[null,10,"październik"]
[null,11,"listopad"]
[null,12,"grudzień"]
[null," ","Razem      ",{"$f":"SUM(D12:D23)","v":0},0,0,0,0,0,0,0,0,0]
[]
[]
[null,null,null,null,null,null,null,{"$f":"\"Obliczenie dochodu za \"&RIGHT(JPK!K15,4)&\" r.\"","v":"Obliczenie dochodu za 2026 r."},null,null,null,"dochód w trakcie roku"]
[null,null,null,null,null,null,null,null,null,null,null,null,"Styczeń","Luty","Marzec","Kwiecień","Maj","Czerwiec","Lipiec","Sierpień","Wrzesień","Październik","Listopad","Grudzień"]
[null,null,null,"1.","Przychód netto (kol. 11)",null,null,null,null,{"$f":"F24","v":0},null,"narastająco",{"$f":"F12","v":0},{"$f":"SUM($F$12:$F13)","v":0},{"$f":"SUM($F$12:$F14)","v":0},{"$f":"SUM($F$12:$F15)","v":0},{"$f":"SUM($F$12:$F16)","v":0},{"$f":"SUM($F$12:$F17)","v":0},{"$f":"SUM($F$12:$F18)","v":0},{"$f":"SUM($F$12:$F19)","v":0},{"$f":"SUM($F$12:$F20)","v":0},{"$f":"SUM($F$12:$F21)","v":0},{"$f":"SUM($F$12:$F22)","v":0},{"$f":"SUM($F$12:$F23)","v":0}]
[]
[null,null,null,"2.","Wysokość kosztów uzyskania poniesionych w roku podatkowym:"]
[]
[null,null,null,null,"a) wartość spisu z natury na początek roku podatkowego",null,null,null,null,{"$f":"JPK!T39","v":0},null,"wpisz remanent początkowy",null,{"$f":"M33","v":0},{"$f":"N33","v":0},0,0,0,0,0,0,0,0,0]
[null,null,null,null,"b) plus wydatki na zakup towarów handlowych i materiałów (kol. 12)",null,null,null,null,{"$f":"G24","v":0},null,null,{"$f":"G12","v":0},{"$f":"SUM($G$12:$G13)","v":0},{"$f":"SUM($G$12:$G14)","v":0},{"$f":"SUM($G$12:$G15)","v":0},{"$f":"SUM($G$12:$G16)","v":0},{"$f":"SUM($G$12:$G17)","v":0},{"$f":"SUM($G$12:$G18)","v":0},{"$f":"SUM($G$12:$G19)","v":0},{"$f":"SUM($G$12:$G20)","v":0},{"$f":"SUM($G$12:$G21)","v":0},{"$f":"SUM($G$12:$G22)","v":0},{"$f":"SUM($G$12:$G23)","v":0}]
[null,null,null,null,"c) plus wydatki na koszty uboczne zakupu ( kol.13)",null,null,null,null,{"$f":"H24","v":0},null,null,{"$f":"H12","v":0},{"$f":"SUM($H$12:$H13)","v":0},{"$f":"SUM($H$12:$H14)","v":0},{"$f":"SUM($H$12:$H15)","v":0},{"$f":"SUM($H$12:$H16)","v":0},{"$f":"SUM($H$12:$H17)","v":0},{"$f":"SUM($H$12:$H18)","v":0},{"$f":"SUM($H$12:$H19)","v":0},{"$f":"SUM($H$12:$H20)","v":0},{"$f":"SUM($H$12:$H21)","v":0},{"$f":"SUM($H$12:$H22)","v":0},{"$f":"SUM($H$12:$H23)","v":0}]
[null,null,null,null,"d) minus wartość spisu z natury na koniec roku podatkowego",null,null,null,null,{"$f":"JPK!T40","v":0},null,"wpisz remanent okresowy ",null,{"$f":"M36","v":0},{"$f":"N36","v":0},0,0,0,0,0,0,0,0,0]
[null,null,null,null,"e) plus kwota pozostałych wydatków ( kol. 16)",null,null,null,null,{"$f":"K24","v":0},null,null,{"$f":"K12","v":0},{"$f":"SUM($K$12:$K13)","v":0},{"$f":"SUM($K$12:$K14)","v":0},{"$f":"SUM($K$12:$K15)","v":0},{"$f":"SUM($K$12:$K16)","v":0},{"$f":"SUM($K$12:$K17)","v":0},{"$f":"SUM($K$12:$K18)","v":0},{"$f":"SUM($K$12:$K19)","v":0},{"$f":"SUM($K$12:$K20)","v":0},{"$f":"SUM($K$12:$K21)","v":0},{"$f":"SUM($K$12:$K22)","v":0},{"$f":"SUM($K$12:$K23)","v":0}]
[null,null,null,null,"f) minus wartość wynagrodzeń w naturze ujętych w innych kol. księgi",null,null,null,null,null,null,"narastająco",null,{"$f":"M38","v":0},{"$f":"N38","v":0},{"$f":"O38","v":0},0,0,0,0,0,0,0,0]
[]
[null,null,null,null,"Razem koszty uzyskania przychodu",null,null,null,null,{"$f":"J33+J34+J35-J36+J37-J38","v":0},null,"narastająco",{"$f":"M33+M34+M35-M36+M37-M38","v":0},{"$f":"N33+N34+N35-N36+N37-N38","v":0},0,0,0,0,0,0,0,0,0,0]
[]
[null,null,null,"3.","Ustalenie dochodu osiągniętego w roku podatkowym:"]
[]
[null,null,null,null,"a) przychód (pkt 1)",null,null,null,null,{"$f":"F24","v":0},null,null,{"$f":"M29","v":0},{"$f":"N29","v":0},0,0,0,0,0,0,0,0,0,0]
[null,null,null,null,"b) minus koszty uzyskania przychodów (pkt 2)",null,null,null,null,{"$f":"J40","v":0},null,null,{"$f":"M40","v":0},{"$f":"N40","v":0},0,0,0,0,0,0,0,0,0,0]
[]
[null,null,null,null,"Dochód / Strata (a - b )",null,null,null,null,{"$f":"J44-J45","v":0},null,null,{"$f":"M44-M45","v":0},{"$f":"N44-N45","v":0},0,0,0,0,0,0,0,0,0,0]
[]
[]
[]
[]
[null,"— POBIERZ KALKULATOR I WYPEŁNIJ GO AUTOMATYCZNIE DANYMI —"]
[null,"1. Wejdź na stronę wybranego kalkulatora, dokonaj zakupu i umieść go w tym samym katalogu co skoroszyt JPK PKPIR."]
[null,"2. Wprowadź nazwę pliku zakupionego kalkulatora do tabelki poniżej, możesz go nazwać dowolnie, ważne aby nazwa pliku kalkulatora \n     i nazwa w tabelce poniżej były identyczne)."]
[null,"3. Ustaw kursor na komórce z nazwą Twojego kalkulatora (tabelka poniżej) i kliknij niebieski przycisk \"Oblicz zaliczki na podatek\"."]
[null,"4. Kalkulator otworzy się automatycznie wypełniając kwotami przychodów i kosztów wprowadzonymi w tabelce powyżej.\n     Kalkulator podatkowy (na skali lub liniowy) wylicza zaliczkę na podatek dochodowy, uwzględnia opłacone składki na ubezpieczenie społeczne, jak również\n     wylicza wysokość składki zdrowotnej od dochodu. W przypadku podatku liniowego składka zdrowotna ujęta jest w kosztach uzyskania przychodu (KUP).\n     Kalkulator liniowy uwzględnia w wyliczeniach limit odliczenia zapłaconej składki zdrowotnej (14 100 zł w 2026 r.). \n     Graficzna wizualizacja kalkulatorów znajduje się w dolnej części tego arkusza (pod poniższą tabelką z nazwami plików)."]
[]
[]
[]
[null,null,null,null,"Lp.","nazwa kalkulatora",null,null,null,"udział proc."]
[null,null,null,null,1,"nowak-jan-doc_5271-2026.xlsx",null,null,null,100]
[null,null,null,null,2,"itd."]
[]
[]
[]
[]
[]
[]
[]
[]
[]
[]
[]
[]
[]
[]
[]
[]
[]
[]
[]
[]
[]
[]
[]
[]
[]
[]
[]
[]
[null,"Wybierz kalkulator właściwy dla wybranej formy opodatkowania (4 kalkulatory do wyboru)."]
[null,null,"iform.pl - kalkulator-podatkowy-zaliczka-na-podatek-wedlug-zasad-ogolnych-skala-podatkowa.html"]
[]
[]
[]
[]
[]
[]
[]
[]
[]
[]
[]
[]
[]
[]
[]
[]
[]
[]
[]
[]
[]
[]
[]
[]
[]
[]
[]
[]
[]
[]
[]
[]
[]
[]
[]
[]
[]
[null,null,"iform.pl - kalkulator-podatkowy-zaliczka-na-podatek-liniowy.html"]

{"sheet":"G","index":4,"n_rows":400,"n_cols":18,"rows_kept":400,"cut":false,"hidden":true,"merged":[]}
[null,null,null,null,null,"PL",null,null,"URZĄD SKARBOWY W ALEKSANDROWIE KUJAWSKIM","0402","URZĄD SKARBOWY W ALEKSANDROWIE KUJAWSKIM"]
[null,null,null,null,null,"AF",null,null,"URZĄD SKARBOWY W AUGUSTOWIE","2002","URZĄD SKARBOWY W AUGUSTOWIE"]
[null,null,null,null,null,"AX",null,null,"URZĄD SKARBOWY W BARTOSZYCACH","2802","URZĄD SKARBOWY W BARTOSZYCACH"]
[null,null,null,null,null,"AL",null,null,"URZĄD SKARBOWY W BEŁCHATOWIE","1002","URZĄD SKARBOWY W BEŁCHATOWIE"]
[null,null,null,null,null,"DZ",null,null,"URZĄD SKARBOWY W BĘDZINIE","2402","URZĄD SKARBOWY W BĘDZINIE"]
[null,null,null,null,null,"AD",null,null,"URZĄD SKARBOWY W BIAŁEJ PODLASKIEJ","0602","URZĄD SKARBOWY W BIAŁEJ PODLASKIEJ"]
[null,null,null,null,null,"AO",null,null,"URZĄD SKARBOWY W BIAŁOBRZEGACH","1402","URZĄD SKARBOWY W BIAŁOBRZEGACH"]
[null,null,null,null,null,"AI",null,null,"URZĄD SKARBOWY W BIAŁOGARDZIE","3202","URZĄD SKARBOWY W BIAŁOGARDZIE",null,null,null,null,null,"pow","=PRZESUNIĘCIE(G!$D$1;PODAJ.POZYCJĘ(WYSZUKAJ.PIONOWO(@;G!G$1:H$16;2);G!$D:$D;0)-1;1;LICZ.JEŻELI(G!$D:$D;WYSZUKAJ.PIONOWO(@;G!G$1:H$16;2));1)"]
[null,null,null,null,null,"AQ",null,null,"PIERWSZY URZĄD SKARBOWY W BIAŁYMSTOKU","2003","PIERWSZY URZĄD SKARBOWY W BIAŁYMSTOKU",null,null,null,null,null,"gmi","=PRZESUNIĘCIE(G!$A$1;PODAJ.POZYCJĘ(WYSZUKAJ.PIONOWO(#;G!E$2:F$380;2;FAŁSZ);G!$A:$A;0)-1;1;LICZ.JEŻELI(G!$A:$A;WYSZUKAJ.PIONOWO(#;G!E$2:F$380;2;FAŁSZ));1)"]
[null,null,null,null,null,"AG",null,null,"DRUGI URZĄD SKARBOWY W BIAŁYMSTOKU","2004","DRUGI URZĄD SKARBOWY W BIAŁYMSTOKU",null,null,null,null,null,null,"@ - pow"]
[null,null,null,null,null,"AN",null,null,"URZĄD SKARBOWY W BIELSKU PODLASKIM","2005","URZĄD SKARBOWY W BIELSKU PODLASKIM",null,null,null,null,null,null,"# - gmi"]
[null,null,null,null,null,"SA",null,null,"PIERWSZY URZĄD SKARBOWY W BIELSKU-BIAŁEJ","2403","PIERWSZY URZĄD SKARBOWY W BIELSKU-BIAŁEJ"]
[null,null,null,null,null,"AR",null,null,"DRUGI URZĄD SKARBOWY W BIELSKU-BIAŁEJ","2404","DRUGI URZĄD SKARBOWY W BIELSKU-BIAŁEJ"]
[null,null,null,null,null,"AM",null,null,"DRUGI ŚLĄSKI URZĄD SKARBOWY W BIELSKU-BIAŁEJ","2472","URZĄD SKARBOWY W BIŁGORAJU"]
[null,null,null,null,null,"AW",null,null,"URZĄD SKARBOWY W BIŁGORAJU","0603","URZĄD SKARBOWY W BOCHNI"]
[null,null,null,null,null,"AU",null,null,"URZĄD SKARBOWY W BOCHNI","1202","URZĄD SKARBOWY W BOLESŁAWCU"]
[null,null,null,null,null,"AT",null,null,"URZĄD SKARBOWY W BOLESŁAWCU","0202","URZĄD SKARBOWY W BRANIEWIE"]
[null,null,null,null,null,"AZ",null,null,"URZĄD SKARBOWY W BRANIEWIE","2803","URZĄD SKARBOWY W BRODNICY"]
[null,null,null,null,null,"BS",null,null,"URZĄD SKARBOWY W BRODNICY","0403","URZĄD SKARBOWY W BRZEGU"]
[null,null,null,null,null,"BH",null,null,"URZĄD SKARBOWY W BRZEGU","1602","URZĄD SKARBOWY W BRZESKU"]
[null,null,null,null,null,"BD",null,null,"URZĄD SKARBOWY W BRZESKU","1203","URZĄD SKARBOWY W BRZEZINACH"]
[null,null,null,null,null,"BB",null,null,"URZĄD SKARBOWY W BRZEZINACH","1003","URZĄD SKARBOWY W BRZOZOWIE"]
[null,null,null,null,null,"BE",null,null,"URZĄD SKARBOWY W BRZOZOWIE","1802","URZĄD SKARBOWY W BUSKU-ZDROJU"]
[null,null,null,null,null,"BZ",null,null,"URZĄD SKARBOWY W BUSKU-ZDROJU","2602","PIERWSZY URZĄD SKARBOWY W BYDGOSZCZY"]
[null,null,null,null,null,"BJ",null,null,"PIERWSZY URZĄD SKARBOWY W BYDGOSZCZY","0404","DRUGI URZĄD SKARBOWY W BYDGOSZCZY"]
[null,null,null,null,null,"BM",null,null,"DRUGI URZĄD SKARBOWY W BYDGOSZCZY","0405","TRZECI URZĄD SKARBOWY W BYDGOSZCZY"]
[null,null,null,null,null,"BT",null,null,"TRZECI URZĄD SKARBOWY W BYDGOSZCZY","0406","URZĄD SKARBOWY W BYSTRZYCY KŁODZKIEJ"]
[null,null,null,null,null,"BY",null,null,"KUJAWSKO-POMORSKI URZĄD SKARBOWY W BYDGOSZCZY","0471","URZĄD SKARBOWY W BYTOMIU"]
[null,null,null,null,null,"BO",null,null,"URZĄD SKARBOWY W BYSTRZYCY KŁODZKIEJ","0203","URZĄD SKARBOWY W BYTOWIE"]
[null,null,null,null,null,"BQ",null,null,"URZĄD SKARBOWY W BYTOMIU","2405","URZĄD SKARBOWY W CHEŁMIE"]
[null,null,null,null,null,"BA",null,null,"URZĄD SKARBOWY W BYTOWIE","2202","URZĄD SKARBOWY W CHEŁMNIE"]
[null,null,null,null,null,"BW",null,null,"URZĄD SKARBOWY W CHEŁMIE","0604","URZĄD SKARBOWY W CHODZIEŻY"]
[null,null,null,null,null,"BR",null,null,"URZĄD SKARBOWY W CHEŁMNIE","0407","URZĄD SKARBOWY W CHOJNICACH"]
[null,null,null,null,null,"BN",null,null,"URZĄD SKARBOWY W CHODZIEŻY","3037","URZĄD SKARBOWY W CHORZOWIE"]
[null,null,null,null,null,"IO",null,null,"URZĄD SKARBOWY W CHOJNICACH","2203","URZĄD SKARBOWY W CHOSZCZNIE"]
[null,null,null,null,null,"BG",null,null,"URZĄD SKARBOWY W CHORZOWIE","2406","URZĄD SKARBOWY W CHRZANOWIE"]
[null,null,null,null,null,"BF",null,null,"URZĄD SKARBOWY W CHOSZCZNIE","3203","URZĄD SKARBOWY W CIECHANOWIE"]
[null,null,null,null,null,"BI",null,null,"URZĄD SKARBOWY W CHRZANOWIE","1204","URZĄD SKARBOWY W CIESZYNIE"]
[null,null,null,null,null,"XC",null,null,"URZĄD SKARBOWY W CIECHANOWIE","1403","URZĄD SKARBOWY W CZARNKOWIE"]
[null,null,null,null,null,"CL",null,null,"URZĄD SKARBOWY W CIESZYNIE","2407","URZĄD SKARBOWY W CZECHOWICACH-DZIEDZICACH"]
[null,null,null,null,null,"CN",null,null,"URZĄD SKARBOWY W CZARNKOWIE","3002","PIERWSZY URZĄD SKARBOWY W CZĘSTOCHOWIE"]
[null,null,null,null,null,"HR",null,null,"URZĄD SKARBOWY W CZECHOWICACH-DZIEDZICACH","2408","DRUGI URZĄD SKARBOWY W CZĘSTOCHOWIE"]
[null,null,null,null,null,"CW",null,null,"PIERWSZY URZĄD SKARBOWY W CZĘSTOCHOWIE","2409","URZĄD SKARBOWY W CZŁUCHOWIE"]
[null,null,null,null,null,"CY",null,null,"DRUGI URZĄD SKARBOWY W CZĘSTOCHOWIE","2410","URZĄD SKARBOWY W DĄBROWIE GÓRNICZEJ"]
[null,null,null,null,null,"TD",null,null,"URZĄD SKARBOWY W CZŁUCHOWIE","2204","URZĄD SKARBOWY W DĄBROWIE TARNOWSKIEJ"]
[null,null,null,null,null,"ME",null,null,"URZĄD SKARBOWY W DĄBROWIE GÓRNICZEJ","2411","URZĄD SKARBOWY W DĘBICY"]
[null,null,null,null,null,"DK",null,null,"URZĄD SKARBOWY W DĄBROWIE TARNOWSKIEJ","1205","URZĄD SKARBOWY W DRAWSKU POMORSKIM"]
[null,null,null,null,null,"DM",null,null,"URZĄD SKARBOWY W DĘBICY","1803","URZĄD SKARBOWY W DREZDENKU"]
[null,null,null,null,null,"DO",null,null,"URZĄD SKARBOWY W DRAWSKU POMORSKIM","3204","URZĄD SKARBOWY W DZIAŁDOWIE"]
[null,null,null,null,null,"DJ",null,null,"URZĄD SKARBOWY W DREZDENKU","0812","URZĄD SKARBOWY W DZIERŻONIOWIE"]
[null,null,null,null,null,"EG",null,null,"URZĄD SKARBOWY W DZIAŁDOWIE","2804","URZĄD SKARBOWY W ELBLĄGU"]
[null,null,null,null,null,"EC",null,null,"URZĄD SKARBOWY W DZIERŻONIOWIE","0204","URZĄD SKARBOWY W EŁKU"]
[null,null,null,null,null,"ER",null,null,"URZĄD SKARBOWY W ELBLĄGU","2805","URZĄD SKARBOWY W GARWOLINIE"]
[null,null,null,null,null,"EE",null,null,"URZĄD SKARBOWY W EŁKU","2806","PIERWSZY URZĄD SKARBOWY W GDAŃSKU"]
[null,null,null,null,null,"ET",null,null,"URZĄD SKARBOWY W GARWOLINIE","1404","DRUGI URZĄD SKARBOWY W GDAŃSKU"]
[null,null,null,null,null,"FK",null,null,"PIERWSZY URZĄD SKARBOWY W GDAŃSKU","2205","TRZECI URZĄD SKARBOWY W GDAŃSKU"]
[null,null,null,null,null,"FJ",null,null,"DRUGI URZĄD SKARBOWY W GDAŃSKU","2206","PIERWSZY URZĄD SKARBOWY W GDYNI"]
[null,null,null,null,null,"PH",null,null,"TRZECI URZĄD SKARBOWY W GDAŃSKU","2207","DRUGI URZĄD SKARBOWY W GDYNI"]
[null,null,null,null,null,"FI",null,null,"POMORSKI URZĄD SKARBOWY W GDAŃSKU","2271","URZĄD SKARBOWY W GIŻYCKU"]
[null,null,null,null,null,"FR",null,null,"PIERWSZY URZĄD SKARBOWY W GDYNI","2208","PIERWSZY URZĄD SKARBOWY W GLIWICACH"]
[null,null,null,null,null,"TF",null,null,"DRUGI URZĄD SKARBOWY W GDYNI","2209","DRUGI URZĄD SKARBOWY W GLIWICACH"]
[null,null,null,null,null,"GA",null,null,"URZĄD SKARBOWY W GIŻYCKU","2807","URZĄD SKARBOWY W GŁOGOWIE"]
[null,null,null,null,null,"GM",null,null,"PIERWSZY URZĄD SKARBOWY W GLIWICACH","2412","URZĄD SKARBOWY W GŁOWNIE"]
[null,null,null,null,null,"GH",null,null,"DRUGI URZĄD SKARBOWY W GLIWICACH","2413","URZĄD SKARBOWY W GŁUBCZYCACH"]
[null,null,null,null,null,"GI",null,null,"URZĄD SKARBOWY W GŁOGOWIE","0205","URZĄD SKARBOWY W GNIEŹNIE"]
[null,null,null,null,null,"GR",null,null,"URZĄD SKARBOWY W GŁOWNIE","1004","URZĄD SKARBOWY W GOLENIOWIE"]
[null,null,null,null,null,"GD",null,null,"URZĄD SKARBOWY W GŁUBCZYCACH","1603","URZĄD SKARBOWY W GOLUBIU-DOBRZYNIU"]
[null,null,null,null,null,"GL",null,null,"URZĄD SKARBOWY W GNIEŹNIE","3003","URZĄD SKARBOWY W GORLICACH"]
[null,null,null,null,null,"GE",null,null,"URZĄD SKARBOWY W GOLENIOWIE","3205","URZĄD SKARBOWY W GORZOWIE WIELKOPOLSKIM"]
[null,null,null,null,null,"GU",null,null,"URZĄD SKARBOWY W GOLUBIU-DOBRZYNIU","0422","URZĄD SKARBOWY W GOSTYNINIE"]
[null,null,null,null,null,"GG",null,null,"URZĄD SKARBOWY W GORLICACH","1206","URZĄD SKARBOWY W GOSTYNIU"]
[null,null,null,null,null,"GY",null,null,"URZĄD SKARBOWY W GORZOWIE WIELKOPOLSKIM","0802","URZĄD SKARBOWY W GÓRZE"]
[null,null,null,null,null,"GF",null,null,"URZĄD SKARBOWY W GOSTYNINIE","1405","URZĄD SKARBOWY W GRAJEWIE"]
[null,null,null,null,null,"GP",null,null,"URZĄD SKARBOWY W GOSTYNIU","3004","URZĄD SKARBOWY W GRODZISKU MAZOWIECKIM"]
[null,null,null,null,null,"GT",null,null,"URZĄD SKARBOWY W GÓRZE","0233","URZĄD SKARBOWY W GRODZISKU WIELKOPOLSKIM"]
[null,null,null,null,null,"GN",null,null,"URZĄD SKARBOWY W GRAJEWIE","2006","URZĄD SKARBOWY W GRÓJCU"]
[null,null,null,null,null,"GQ",null,null,"URZĄD SKARBOWY W GRODZISKU MAZOWIECKIM","1406","URZĄD SKARBOWY W GRUDZIĄDZU"]
[null,null,null,null,null,"GW",null,null,"URZĄD SKARBOWY W GRODZISKU WIELKOPOLSKIM","3005","URZĄD SKARBOWY W GRYFICACH"]
[null,null,null,null,null,"HT",null,null,"URZĄD SKARBOWY W GRÓJCU","1407","URZĄD SKARBOWY W GRYFINIE"]
[null,null,null,null,null,"ES",null,null,"URZĄD SKARBOWY W GRUDZIĄDZU","0408","URZĄD SKARBOWY W HAJNÓWCE"]
[null,null,null,null,null,"HN",null,null,"URZĄD SKARBOWY W GRYFICACH","3206","URZĄD SKARBOWY W HRUBIESZOWIE"]
[null,null,null,null,null,"HK",null,null,"URZĄD SKARBOWY W GRYFINIE","3207","URZĄD SKARBOWY W IŁAWIE"]
[null,null,null,null,null,"IN",null,null,"URZĄD SKARBOWY W HAJNÓWCE","2015","URZĄD SKARBOWY W INOWROCŁAWIU"]
[null,null,null,null,null,"ID",null,null,"URZĄD SKARBOWY W HRUBIESZOWIE","0605","URZĄD SKARBOWY W JANOWIE LUBELSKIM"]
[null,null,null,null,null,"IQ",null,null,"URZĄD SKARBOWY W IŁAWIE","2808","URZĄD SKARBOWY W JAROCINIE"]
[null,null,null,null,null,"IR",null,null,"URZĄD SKARBOWY W INOWROCŁAWIU","0409","URZĄD SKARBOWY W JAROSŁAWIU"]
[null,null,null,null,null,"IE",null,null,"URZĄD SKARBOWY W JANOWIE LUBELSKIM","0606","URZĄD SKARBOWY W JASTRZĘBIU-ZDROJU"]
[null,null,null,null,null,"IS",null,null,"URZĄD SKARBOWY W JAROCINIE","3006","URZĄD SKARBOWY W JAŚLE"]
[null,null,null,null,null,"IL",null,null,"URZĄD SKARBOWY W JAROSŁAWIU","1804","URZĄD SKARBOWY W JAWORZE"]
[null,null,null,null,null,"JM",null,null,"URZĄD SKARBOWY W JASTRZĘBIU-ZDROJU","2414","URZĄD SKARBOWY W JAWORZNIE"]
[null,null,null,null,null,"JP",null,null,"URZĄD SKARBOWY W JAŚLE","1805","URZĄD SKARBOWY W JELENIEJ GÓRZE"]
[null,null,null,null,null,"YE",null,null,"URZĄD SKARBOWY W JAWORZE","0206","URZĄD SKARBOWY W JĘDRZEJOWIE"]
[null,null,null,null,null,"JE",null,null,"URZĄD SKARBOWY W JAWORZNIE","2415","PIERWSZY URZĄD SKARBOWY W KALISZU"]
[null,null,null,null,null,"JO",null,null,"URZĄD SKARBOWY W JELENIEJ GÓRZE","0207","DRUGI URZĄD SKARBOWY W KALISZU"]
[null,null,null,null,null,"KY",null,null,"URZĄD SKARBOWY W JĘDRZEJOWIE","2603","URZĄD SKARBOWY W KAMIENIU POMORSKIM"]
[null,null,null,null,null,"KH",null,null,"URZĄD SKARBOWY W WEJHEROWIE","2220","URZĄD SKARBOWY W KAMIENNEJ GÓRZE"]
[null,null,null,null,null,"CM",null,null,"PIERWSZY URZĄD SKARBOWY W KALISZU","3007","URZĄD SKARBOWY W KARTUZACH"]
[null,null,null,null,null,"CA",null,null,"DRUGI URZĄD SKARBOWY W KALISZU","3008","PIERWSZY URZĄD SKARBOWY W KATOWICACH"]
[null,null,null,null,null,"QA",null,null,"DRUGI WIELKOPOLSKI URZĄD SKARBOWY W KALISZU","3072","DRUGI URZĄD SKARBOWY W KATOWICACH"]
[null,null,null,null,null,"KZ",null,null,"URZĄD SKARBOWY W KAMIENIU POMORSKIM","3208","URZĄD SKARBOWY W KAZIMIERZY WIELKIEJ"]
[null,null,null,null,null,"KE",null,null,"URZĄD SKARBOWY W KAMIENNEJ GÓRZE","0208","URZĄD SKARBOWY W KĘDZIERZYNIE-KOŹLU"]
[null,null,null,null,null,"KG",null,null,"URZĄD SKARBOWY W KARTUZACH","2210","URZĄD SKARBOWY W KĘPNIE"]
[null,null,null,null,null,"KI",null,null,"PIERWSZY URZĄD SKARBOWY W KATOWICACH","2416","URZĄD SKARBOWY W KĘTRZYNIE"]
[null,null,null,null,null,"CO",null,null,"DRUGI URZĄD SKARBOWY W KATOWICACH","2417","PIERWSZY URZĄD SKARBOWY W KIELCACH"]
[null,null,null,null,null,"KM",null,null,"URZĄD SKARBOWY W KAZIMIERZY WIELKIEJ","2614","DRUGI URZĄD SKARBOWY W KIELCACH"]
[null,null,null,null,null,"CG",null,null,"URZĄD SKARBOWY W KĘDZIERZYNIE-KOŹLU","1604","URZĄD SKARBOWY W KLUCZBORKU"]
[null,null,null,null,null,"CD",null,null,"URZĄD SKARBOWY W KĘPNIE","3009","URZĄD SKARBOWY W KŁOBUCKU"]
[null,null,null,null,null,"KP",null,null,"URZĄD SKARBOWY W KĘTRZYNIE","2809","URZĄD SKARBOWY W KŁODZKU"]
[null,null,null,null,null,"XK",null,null,"PIERWSZY URZĄD SKARBOWY W KIELCACH","2604","URZĄD SKARBOWY W KOLBUSZOWEJ"]
[null,null,null,null,null,"CR",null,null,"DRUGI URZĄD SKARBOWY W KIELCACH","2605","URZĄD SKARBOWY W KOLE"]
[null,null,null,null,null,"CU",null,null,"URZĄD SKARBOWY W KLUCZBORKU","1605","URZĄD SKARBOWY W KOLNIE"]
[null,null,null,null,null,"KW",null,null,"URZĄD SKARBOWY W KŁOBUCKU","2418","URZĄD SKARBOWY W KOŁOBRZEGU"]
[null,null,null,null,null,"LA",null,null,"URZĄD SKARBOWY W KŁODZKU","0209","URZĄD SKARBOWY W KONINIE"]
[null,null,null,null,null,"LS",null,null,"URZĄD SKARBOWY W KOLBUSZOWEJ","1806","URZĄD SKARBOWY W KOŃSKICH"]
[null,null,null,null,null,"LB",null,null,"URZĄD SKARBOWY W KOLE","3010","PIERWSZY URZĄD SKARBOWY W KOSZALINIE"]
[null,null,null,null,null,"LR",null,null,"URZĄD SKARBOWY W KOLNIE","2007","DRUGI URZĄD SKARBOWY W KOSZALINIE"]
[null,null,null,null,null,"LY",null,null,"URZĄD SKARBOWY W KOŁOBRZEGU","3209","URZĄD SKARBOWY W KOŚCIANIE"]
[null,null,null,null,null,"LI",null,null,"URZĄD SKARBOWY W KONINIE","3011","URZĄD SKARBOWY W KOŚCIERZYNIE"]
[null,null,null,null,null,"LT",null,null,"URZĄD SKARBOWY W KOŃSKICH","2606","URZĄD SKARBOWY W KOZIENICACH"]
[null,null,null,null,null,"LV",null,null,"PIERWSZY URZĄD SKARBOWY W KOSZALINIE","3210","PIERWSZY URZĄD SKARBOWY KRAKÓW"]
[null,null,null,null,null,"LU",null,null,"DRUGI URZĄD SKARBOWY W KOSZALINIE","3211","DRUGI URZĄD SKARBOWY KRAKÓW"]
[null,null,null,null,null,"MK",null,null,"URZĄD SKARBOWY W KOŚCIANIE","3012","URZĄD SKARBOWY KRAKÓW-KROWODRZA"]
[null,null,null,null,null,"MG",null,null,"URZĄD SKARBOWY W KOŚCIERZYNIE","2211","URZĄD SKARBOWY KRAKÓW-NOWA HUTA"]
[null,null,null,null,null,"YT",null,null,"URZĄD SKARBOWY W KOZIENICACH","1408","URZĄD SKARBOWY KRAKÓW-PODGÓRZE"]
[null,null,null,null,null,"MO",null,null,"PIERWSZY URZĄD SKARBOWY KRAKÓW","1207","URZĄD SKARBOWY KRAKÓW-PRĄDNIK"]
[null,null,null,null,null,"MW",null,null,"URZĄD SKARBOWY KRAKÓW-KROWODRZA","1208","URZĄD SKARBOWY KRAKÓW-STARE MIASTO"]
[null,null,null,null,null,"MV",null,null,"URZĄD SKARBOWY KRAKÓW-NOWA HUTA","1209","URZĄD SKARBOWY KRAKÓW-ŚRÓDMIEŚCIE"]
[null,null,null,null,null,"MY",null,null,"URZĄD SKARBOWY KRAKÓW-PODGÓRZE","1210","URZĄD SKARBOWY W KRAPKOWICACH"]
[null,null,null,null,null,"ML",null,null,"URZĄD SKARBOWY KRAKÓW-PRĄDNIK","1211","URZĄD SKARBOWY W KRASNYMSTAWIE"]
[null,null,null,null,null,"MT",null,null,"URZĄD SKARBOWY KRAKÓW-STARE MIASTO","1212","URZĄD SKARBOWY W KRAŚNIKU"]
[null,null,null,null,null,"MP",null,null,"URZĄD SKARBOWY KRAKÓW-ŚRÓDMIEŚCIE","1213","URZĄD SKARBOWY W KROŚNIE"]
[null,null,null,null,null,"MA",null,null,"DRUGI URZĄD SKARBOWY KRAKÓW","1228","URZĄD SKARBOWY W KROŚNIE ODRZAŃSKIM"]
[null,null,null,null,null,"MQ",null,null,"URZĄD SKARBOWY W KRAPKOWICACH","1613","URZĄD SKARBOWY W KROTOSZYNIE"]
[null,null,null,null,null,"MR",null,null,"URZĄD SKARBOWY W KRASNYMSTAWIE","0607","URZĄD SKARBOWY W KUTNIE"]
[null,null,null,null,null,"MU",null,null,"URZĄD SKARBOWY W KRAŚNIKU","0608","URZĄD SKARBOWY W KWIDZYNIE"]
[null,null,null,null,null,"MX",null,null,"URZĄD SKARBOWY W KROŚNIE","1807","URZĄD SKARBOWY W LEGIONOWIE"]
[null,null,null,null,null,"XL",null,null,"URZĄD SKARBOWY W KROŚNIE ODRZAŃSKIM","0803","URZĄD SKARBOWY W LEGNICY"]
[null,null,null,null,null,"FM",null,null,"URZĄD SKARBOWY W KROTOSZYNIE","3013","URZĄD SKARBOWY W LESKU"]
[null,null,null,null,null,"UM",null,null,"URZĄD SKARBOWY W KUTNIE","1005","URZĄD SKARBOWY W LESZNIE"]
[null,null,null,null,null,"MD",null,null,"URZĄD SKARBOWY W KWIDZYNIE","2212","URZĄD SKARBOWY W LEŻAJSKU"]
[null,null,null,null,null,"MC",null,null,"URZĄD SKARBOWY W LEGIONOWIE","1409","URZĄD SKARBOWY W LĘBORKU"]
[null,null,null,null,null,"MN",null,null,"URZĄD SKARBOWY W LEGNICY","0210","URZĄD SKARBOWY W LIMANOWEJ"]
[null,null,null,null,null,"MS",null,null,"URZĄD SKARBOWY W LESKU","1808","URZĄD SKARBOWY W LIPNIE"]
[null,null,null,null,null,"MZ",null,null,"URZĄD SKARBOWY W LESZNIE","3014","URZĄD SKARBOWY W LIPSKU"]
[null,null,null,null,null,"MM",null,null,"URZĄD SKARBOWY W LEŻAJSKU","1809","URZĄD SKARBOWY W LUBACZOWIE"]
[null,null,null,null,null,"NA",null,null,"URZĄD SKARBOWY W LĘBORKU","2213","URZĄD SKARBOWY W LUBANIU"]
[null,null,null,null,null,"NR",null,null,"URZĄD SKARBOWY W LIMANOWEJ","1214","URZĄD SKARBOWY W LUBARTOWIE"]
[null,null,null,null,null,"NP",null,null,"URZĄD SKARBOWY W LIPNIE","0410","URZĄD SKARBOWY W LUBINIE"]
[null,null,null,null,null,"NL",null,null,"URZĄD SKARBOWY W LIPSKU","1447","PIERWSZY URZĄD SKARBOWY W LUBLINIE"]
[null,null,null,null,null,"DE",null,null,"URZĄD SKARBOWY W LUBACZOWIE","1810","DRUGI URZĄD SKARBOWY W LUBLINIE"]
[null,null,null,null,null,"NE",null,null,"URZĄD SKARBOWY W LUBANIU","0211","TRZECI URZĄD SKARBOWY W LUBLINIE"]
[null,null,null,null,null,"NG",null,null,"URZĄD SKARBOWY W LUBARTOWIE","0609","URZĄD SKARBOWY W LUBLIŃCU"]
[null,null,null,null,null,"NI",null,null,"URZĄD SKARBOWY W LUBINIE","0212","URZĄD SKARBOWY W LWÓWKU ŚLĄSKIM"]
[null,null,null,null,null,"NU",null,null,"PIERWSZY URZĄD SKARBOWY W LUBLINIE","0610","URZĄD SKARBOWY W ŁAŃCUCIE"]
[null,null,null,null,null,"NF",null,null,"DRUGI URZĄD SKARBOWY W LUBLINIE","0611","URZĄD SKARBOWY W ŁASKU"]
[null,null,null,null,null,"NO",null,null,"TRZECI URZĄD SKARBOWY W LUBLINIE","0612","URZĄD SKARBOWY W ŁĘCZNEJ"]
[null,null,null,null,null,"NC",null,null,"LUBELSKI URZĄD SKARBOWY W LUBLINIE","0671","URZĄD SKARBOWY W ŁĘCZYCY"]
[null,null,null,null,null,"NZ",null,null,"URZĄD SKARBOWY W LUBLIŃCU","2419","URZĄD SKARBOWY W ŁOMŻY"]
[null,null,null,null,null,"PS",null,null,"URZĄD SKARBOWY W LWÓWKU ŚLĄSKIM","0213","URZĄD SKARBOWY W ŁOSICACH"]
[null,null,null,null,null,"OM",null,null,"URZĄD SKARBOWY W ŁAŃCUCIE","1811","URZĄD SKARBOWY W ŁOWICZU"]
[null,null,null,null,null,"PK",null,null,"URZĄD SKARBOWY W ŁASKU","1006","PIERWSZY URZĄD SKARBOWY ŁÓDŹ-BAŁUTY"]
[null,null,null,null,null,"PW",null,null,"URZĄD SKARBOWY W ŁĘCZNEJ","0621","DRUGI URZĄD SKARBOWY ŁÓDŹ-BAŁUTY"]
[null,null,null,null,null,"PA",null,null,"URZĄD SKARBOWY W ŁĘCZYCY","1028","PIERWSZY URZĄD SKARBOWY ŁÓDŹ-GÓRNA"]
[null,null,null,null,null,"PG",null,null,"URZĄD SKARBOWY W ŁOMŻY","2008","DRUGI URZĄD SKARBOWY ŁÓDŹ-GÓRNA"]
[null,null,null,null,null,"PY",null,null,"URZĄD SKARBOWY W ŁOSICACH","1410","URZĄD SKARBOWY ŁÓDŹ-POLESIE"]
[null,null,null,null,null,"PE",null,null,"URZĄD SKARBOWY W ŁOWICZU","1007","URZĄD SKARBOWY ŁÓDŹ-ŚRÓDMIEŚCIE"]
[null,null,null,null,null,"PN",null,null,"PIERWSZY URZĄD SKARBOWY ŁÓDŹ-BAŁUTY","1008","URZĄD SKARBOWY ŁÓDŹ-WIDZEW"]
[null,null,null,null,null,"PF",null,null,"DRUGI URZĄD SKARBOWY ŁÓDŹ-BAŁUTY","1009","URZĄD SKARBOWY W ŁUKOWIE"]
[null,null,null,null,null,"GS",null,null,"PIERWSZY URZĄD SKARBOWY ŁÓDŹ-GÓRNA","1010","URZĄD SKARBOWY W MAKOWIE MAZOWIECKIM"]
[null,null,null,null,null,"PT",null,null,"DRUGI URZĄD SKARBOWY ŁÓDŹ-GÓRNA","1011","URZĄD SKARBOWY W MALBORKU"]
[null,null,null,null,null,"PR",null,null,"URZĄD SKARBOWY ŁÓDŹ-POLESIE","1012","URZĄD SKARBOWY W MIECHOWIE"]
[null,null,null,null,null,"CF",null,null,"URZĄD SKARBOWY ŁÓDŹ-ŚRÓDMIEŚCIE","1013","URZĄD SKARBOWY W MIELCU"]
[null,null,null,null,null,"CZ",null,null,"URZĄD SKARBOWY ŁÓDŹ-WIDZEW","1014","URZĄD SKARBOWY W MIĘDZYCHODZIE"]
[null,null,null,null,null,"KR",null,null,"ŁÓDZKI URZĄD SKARBOWY W ŁODZI","1071","URZĄD SKARBOWY W MIĘDZYRZECZU"]
[null,null,null,null,null,"ZA",null,null,"URZĄD SKARBOWY W ŁUKOWIE","0613","URZĄD SKARBOWY W MIKOŁOWIE"]
[null,null,null,null,null,"RE",null,null,"URZĄD SKARBOWY W MAKOWIE MAZOWIECKIM","1411","URZĄD SKARBOWY W MILICZU"]
[null,null,null,null,null,"RU",null,null,"URZĄD SKARBOWY W MALBORKU","2214","URZĄD SKARBOWY W MIŃSKU MAZOWIECKIM"]
[null,null,null,null,null,"RO",null,null,"MAŁOPOLSKI URZĄD SKARBOWY W KRAKOWIE","1271","URZĄD SKARBOWY W MŁAWIE"]
[null,null,null,null,null,"RW",null,null,"URZĄD SKARBOWY W MIECHOWIE","1215","URZĄD SKARBOWY W MOGILNIE"]
[null,null,null,null,null,"EH",null,null,"URZĄD SKARBOWY W MIELCU","1812","URZĄD SKARBOWY W MOŃKACH"]
[null,null,null,null,null,"BL",null,null,"URZĄD SKARBOWY W MIĘDZYCHODZIE","3015","URZĄD SKARBOWY W MYSŁOWICACH"]
[null,null,null,null,null,"KN",null,null,"URZĄD SKARBOWY W MIĘDZYRZECZU","0804","URZĄD SKARBOWY W MYSZKOWIE"]
[null,null,null,null,null,"LC",null,null,"URZĄD SKARBOWY W MIKOŁOWIE","2420","URZĄD SKARBOWY W MYŚLENICACH"]
[null,null,null,null,null,"MF",null,null,"URZĄD SKARBOWY W MILICZU","0214","URZĄD SKARBOWY W MYŚLIBORZU"]
[null,null,null,null,null,"VC",null,null,"URZĄD SKARBOWY W MIŃSKU MAZOWIECKIM","1412","URZĄD SKARBOWY W NAKLE NAD NOTECIĄ"]
[null,null,null,null,null,"SV",null,null,"URZĄD SKARBOWY W MŁAWIE","1413","URZĄD SKARBOWY W NAMYSŁOWIE"]
[null,null,null,null,null,"WS",null,null,"URZĄD SKARBOWY W MOGILNIE","0411","URZĄD SKARBOWY W NIDZICY"]
[null,null,null,null,null,"AS",null,null,"URZĄD SKARBOWY W MOŃKACH","2009","URZĄD SKARBOWY W NISKU"]
[null,null,null,null,null,"SM",null,null,"URZĄD SKARBOWY W MYSŁOWICACH","2421","URZĄD SKARBOWY W NOWEJ RUDZIE"]
[null,null,null,null,null,"SN",null,null,"URZĄD SKARBOWY W MYSZKOWIE","2422","URZĄD SKARBOWY W NOWEJ SOLI"]
[null,null,null,null,null,"RS",null,null,"URZĄD SKARBOWY W MYŚLENICACH","1216","URZĄD SKARBOWY W NOWYM DWORZE MAZOWIECKIM"]
[null,null,null,null,null,"SC",null,null,"URZĄD SKARBOWY W MYŚLIBORZU","3212","URZĄD SKARBOWY W NOWYM MIEŚCIE LUBAWSKIM"]
[null,null,null,null,null,"SL",null,null,"URZĄD SKARBOWY W NAKLE NAD NOTECIĄ","0412","URZĄD SKARBOWY W NOWYM SĄCZU"]
[null,null,null,null,null,"SG",null,null,"URZĄD SKARBOWY W NAMYSŁOWIE","1606","URZĄD SKARBOWY W NOWYM TARGU"]
[null,null,null,null,null,"SK",null,null,"URZĄD SKARBOWY W NIDZICY","2810","URZĄD SKARBOWY W NOWYM TOMYŚLU"]
[null,null,null,null,null,"SI",null,null,"URZĄD SKARBOWY W NISKU","1823","URZĄD SKARBOWY W NYSIE"]
[null,null,null,null,null,"SO",null,null,"URZĄD SKARBOWY W NOWEJ RUDZIE","0215","URZĄD SKARBOWY W OBORNIKACH"]
[null,null,null,null,null,"LK",null,null,"URZĄD SKARBOWY W NOWEJ SOLI","0805","URZĄD SKARBOWY W OLECKU"]
[null,null,null,null,null,"PM",null,null,"URZĄD SKARBOWY W NOWYM DWORZE MAZOWIECKIM","1414","URZĄD SKARBOWY W OLEŚNICY"]
[null,null,null,null,null,"US",null,null,"URZĄD SKARBOWY W NOWYM MIEŚCIE LUBAWSKIM","2811","URZĄD SKARBOWY W OLEŚNIE"]
[null,null,null,null,null,"SZ",null,null,"URZĄD SKARBOWY W NOWYM SĄCZU","1217","URZĄD SKARBOWY W OLKUSZU"]
[null,null,null,null,null,"SD",null,null,"URZĄD SKARBOWY W NOWYM TARGU","1218","URZĄD SKARBOWY W OLSZTYNIE"]
[null,null,null,null,null,"SS",null,null,"URZĄD SKARBOWY W NOWYM TOMYŚLU","3016","URZĄD SKARBOWY W OŁAWIE"]
[null,null,null,null,null,"SR",null,null,"URZĄD SKARBOWY W NYSIE","1607","URZĄD SKARBOWY W OPATOWIE"]
[null,null,null,null,null,"SJ",null,null,"URZĄD SKARBOWY W OBORNIKACH","3038","URZĄD SKARBOWY W OPOCZNIE"]
[null,null,null,null,null,"SH",null,null,"URZĄD SKARBOWY W OLECKU","2812","PIERWSZY URZĄD SKARBOWY W OPOLU"]
[null,null,null,null,null,"SY",null,null,"URZĄD SKARBOWY W OLEŚNICY","0216","DRUGI URZĄD SKARBOWY W OPOLU"]
[null,null,null,null,null,"CH",null,null,"URZĄD SKARBOWY W OLEŚNIE","1608","URZĄD SKARBOWY W OPOLU LUBELSKIM"]
[null,null,null,null,null,"SE",null,null,"URZĄD SKARBOWY W OLKUSZU","1219","URZĄD SKARBOWY W OSTROŁĘCE"]
[null,null,null,null,null,"TJ",null,null,"URZĄD SKARBOWY W OLSZTYNIE","2813","URZĄD SKARBOWY W OSTROWCU ŚWIĘTOKRZYSKIM"]
[null,null,null,null,null,"TH",null,null,"WARMIŃSKO-MAZURSKI URZĄD SKARBOWY W OLSZTYNIE","2871","URZĄD SKARBOWY W OSTROWI MAZOWIECKIEJ"]
[null,null,null,null,null,"TW",null,null,"URZĄD SKARBOWY W OŁAWIE","0217","URZĄD SKARBOWY W OSTROWIE WIELKOPOLSKIM"]
[null,null,null,null,null,"TZ",null,null,"URZĄD SKARBOWY W OPATOWIE","2607","URZĄD SKARBOWY W OSTRÓDZIE"]
[null,null,null,null,null,"TG",null,null,"URZĄD SKARBOWY W OPOCZNIE","1015","URZĄD SKARBOWY W OSTRZESZOWIE"]
[null,null,null,null,null,"TK",null,null,"PIERWSZY URZĄD SKARBOWY W OPOLU","1609","URZĄD SKARBOWY W OŚWIĘCIMIU"]
[null,null,null,null,null,"TO",null,null,"DRUGI URZĄD SKARBOWY W OPOLU","1610","URZĄD SKARBOWY W OTWOCKU"]
[null,null,null,null,null,"TT",null,null,"OPOLSKI URZĄD SKARBOWY W OPOLU","1671","URZĄD SKARBOWY W PABIANICACH"]
[null,null,null,null,null,"TN",null,null,"URZĄD SKARBOWY W OPOLU LUBELSKIM","0614","URZĄD SKARBOWY W PAJĘCZNIE"]
[null,null,null,null,null,"TR",null,null,"URZĄD SKARBOWY W OSTROŁĘCE","1415","URZĄD SKARBOWY W PARCZEWIE"]
[null,null,null,null,null,"TM",null,null,"URZĄD SKARBOWY W OSTROWCU ŚWIĘTOKRZYSKIM","2608","URZĄD SKARBOWY W PIASECZNIE"]
[null,null,null,null,null,"TV",null,null,"URZĄD SKARBOWY W OSTROWI MAZOWIECKIEJ","1416","URZĄD SKARBOWY W PIEKARACH ŚLĄSKICH"]
[null,null,null,null,null,"UG",null,null,"URZĄD SKARBOWY W OSTROWIE WIELKOPOLSKIM","3017","URZĄD SKARBOWY W PILE"]
[null,null,null,null,null,"UA",null,null,"URZĄD SKARBOWY W OSTRÓDZIE","2814","URZĄD SKARBOWY W PIŃCZOWIE"]
[null,null,null,null,null,"UY",null,null,"URZĄD SKARBOWY W OSTRZESZOWIE","3018","URZĄD SKARBOWY W PIOTRKOWIE TRYBUNALSKIM"]
[null,null,null,null,null,"UZ",null,null,"URZĄD SKARBOWY W OŚWIĘCIMIU","1220","URZĄD SKARBOWY W PISZU"]
[null,null,null,null,null,"VU",null,null,"URZĄD SKARBOWY W OTWOCKU","1417","URZĄD SKARBOWY W PLESZEWIE"]
[null,null,null,null,null,"WF",null,null,"URZĄD SKARBOWY W PABIANICACH","1016","URZĄD SKARBOWY W PŁOCKU"]
[null,null,null,null,null,"VA",null,null,"URZĄD SKARBOWY W PAJĘCZNIE","1029","URZĄD SKARBOWY W PŁOŃSKU"]
[null,null,null,null,null,"HU",null,null,"URZĄD SKARBOWY W PARCZEWIE","0615","URZĄD SKARBOWY W PODDĘBICACH"]
[null,null,null,null,null,"VE",null,null,"URZĄD SKARBOWY W PIASECZNIE","1418","URZĄD SKARBOWY W POLKOWICACH"]
[null,null,null,null,null,"GB",null,null,"URZĄD SKARBOWY W PIEKARACH ŚLĄSKICH","2423","PIERWSZY URZĄD SKARBOWY W POZNANIU"]
[null,null,null,null,null,"VN",null,null,"URZĄD SKARBOWY W PILE","3019","URZĄD SKARBOWY POZNAŃ-GRUNWALD"]
[null,null,null,null,null,"IT",null,null,"URZĄD SKARBOWY W PIŃCZOWIE","2609","URZĄD SKARBOWY POZNAŃ-JEŻYCE"]
[null,null,null,null,null,"TL",null,null,"URZĄD SKARBOWY W PIOTRKOWIE TRYBUNALSKIM","1017","URZĄD SKARBOWY POZNAŃ-NOWE MIASTO"]
[null,null,null,null,null,"CI",null,null,"URZĄD SKARBOWY W PISZU","2815","URZĄD SKARBOWY POZNAŃ-WILDA"]
[null,null,null,null,null,"BV",null,null,"URZĄD SKARBOWY W PLESZEWIE","3039","URZĄD SKARBOWY POZNAŃ-WINOGRADY"]
[null,null,null,null,null,"CX",null,null,"URZĄD SKARBOWY W PŁOCKU","1419","URZĄD SKARBOWY W PROSZOWICACH"]
[null,null,null,null,null,"IM",null,null,"URZĄD SKARBOWY W PŁOŃSKU","1420","URZĄD SKARBOWY W PRUDNIKU"]
[null,null,null,null,null,"SX",null,null,"URZĄD SKARBOWY W PODDĘBICACH","1018","URZĄD SKARBOWY W PRUSZCZU GDAŃSKIM"]
[null,null,null,null,null,"CK",null,null,"PODLASKI URZĄD SKARBOWY W BIAŁYMSTOKU","2071","URZĄD SKARBOWY W PRUSZKOWIE"]
[null,null,null,null,null,"VI",null,null,"URZĄD SKARBOWY W POLKOWICACH","0234","URZĄD SKARBOWY W PRZASNYSZU"]
[null,null,null,null,null,"VG",null,null,"URZĄD SKARBOWY POZNAŃ-GRUNWALD","3020","URZĄD SKARBOWY W PRZEMYŚLU"]
[null,null,null,null,null,"HM",null,null,"URZĄD SKARBOWY POZNAŃ-JEŻYCE","3021","URZĄD SKARBOWY W PRZEWORSKU"]
[null,null,null,null,null,"CC",null,null,"URZĄD SKARBOWY POZNAŃ-NOWE MIASTO","3022","URZĄD SKARBOWY W PRZYSUSZE"]
[null,null,null,null,null,"MH",null,null,"PIERWSZY URZĄD SKARBOWY W POZNANIU","3023","URZĄD SKARBOWY W PSZCZYNIE"]
[null,null,null,null,null,"FO",null,null,"URZĄD SKARBOWY POZNAŃ-WINOGRADY","3025","URZĄD SKARBOWY W PUCKU"]
[null,null,null,null,null,"SB",null,null,"URZĄD SKARBOWY POZNAŃ-WILDA","3026","URZĄD SKARBOWY W PUŁAWACH"]
[null,null,null,null,null,"ST",null,null,"PIERWSZY WIELKOPOLSKI URZĄD SKARBOWY W POZNANIU","3071","URZĄD SKARBOWY W PUŁTUSKU"]
[null,null,null,null,null,"TC",null,null,"URZĄD SKARBOWY W PROSZOWICACH","1221","URZĄD SKARBOWY W PYRZYCACH"]
[null,null,null,null,null,"ZM",null,null,"URZĄD SKARBOWY W PRUDNIKU","1611","URZĄD SKARBOWY W RACIBORZU"]
[null,null,null,null,null,"CV",null,null,"URZĄD SKARBOWY W PRUSZCZU GDAŃSKIM","2221","PIERWSZY URZĄD SKARBOWY W RADOMIU"]
[null,null,null,null,null,"ZW",null,null,"URZĄD SKARBOWY W PRUSZKOWIE","1421","DRUGI URZĄD SKARBOWY W RADOMIU"]
[null,null,null,null,null,"AE",null,null,"URZĄD SKARBOWY W PRZASNYSZU","1422","URZĄD SKARBOWY W RADOMSKU"]
[null,null,null,null,null,"XI",null,null,"URZĄD SKARBOWY W PRZEMYŚLU","1813","URZĄD SKARBOWY W RADZIEJOWIE"]
[null,null,null,null,null,"XU",null,null,"URZĄD SKARBOWY W PRZEWORSKU","1814","URZĄD SKARBOWY W RADZYNIU PODLASKIM"]
[null,null,null,null,null,null,null,null,"URZĄD SKARBOWY W PRZYSUSZE","1448","URZĄD SKARBOWY W RAWICZU"]
[null,null,null,null,null,null,null,null,"URZĄD SKARBOWY W PSZCZYNIE","2424","URZĄD SKARBOWY W RAWIE MAZOWIECKIEJ"]
[null,null,null,null,null,null,null,null,"URZĄD SKARBOWY W PUCKU","2215","URZĄD SKARBOWY W ROPCZYCACH"]
[null,null,null,null,null,null,null,null,"URZĄD SKARBOWY W PUŁAWACH","0616","URZĄD SKARBOWY W RUDZIE ŚLĄSKIEJ"]
[null,null,null,null,null,null,null,null,"URZĄD SKARBOWY W PUŁTUSKU","1423","URZĄD SKARBOWY W RYBNIKU"]
[null,null,null,null,null,null,null,null,"URZĄD SKARBOWY W PYRZYCACH","3213","URZĄD SKARBOWY W RYKACH"]
[null,null,null,null,null,null,null,null,"URZĄD SKARBOWY W RACIBORZU","2425","URZĄD SKARBOWY W RYPINIE"]
[null,null,null,null,null,null,null,null,"PIERWSZY URZĄD SKARBOWY W RADOMIU","1424","PIERWSZY URZĄD SKARBOWY W RZESZOWIE"]
[null,null,null,null,null,null,null,null,"DRUGI URZĄD SKARBOWY W RADOMIU","1425","DRUGI URZĄD SKARBOWY W RZESZOWIE"]
[null,null,null,null,null,null,null,null,"TRZECI MAZOWIECKI URZĄD SKARBOWY W RADOMIU","1473","URZĄD SKARBOWY W SANDOMIERZU"]
[null,null,null,null,null,null,null,null,"URZĄD SKARBOWY W RADOMSKU","1019","URZĄD SKARBOWY W SANOKU"]
[null,null,null,null,null,null,null,null,"URZĄD SKARBOWY W RADZIEJOWIE","0413","URZĄD SKARBOWY W SĘPÓLNIE KRAJEŃSKIM"]
[null,null,null,null,null,null,null,null,"URZĄD SKARBOWY W RADZYNIU PODLASKIM","0617","URZĄD SKARBOWY W SIEDLCACH"]
[null,null,null,null,null,null,null,null,"URZĄD SKARBOWY W RAWICZU","3027","URZĄD SKARBOWY W SIEMIANOWICACH ŚLĄSKICH"]
[null,null,null,null,null,null,null,null,"URZĄD SKARBOWY W RAWIE MAZOWIECKIEJ","1020","URZĄD SKARBOWY W SIEMIATYCZACH"]
[null,null,null,null,null,null,null,null,"URZĄD SKARBOWY W ROPCZYCACH","1815","URZĄD SKARBOWY W SIERADZU"]
[null,null,null,null,null,null,null,null,"URZĄD SKARBOWY W RUDZIE ŚLĄSKIEJ","2426","URZĄD SKARBOWY W SIERPCU"]
[null,null,null,null,null,null,null,null,"URZĄD SKARBOWY W RYBNIKU","2427","URZĄD SKARBOWY W SKARŻYSKU-KAMIENNEJ"]
[null,null,null,null,null,null,null,null,"URZĄD SKARBOWY W RYKACH","0622","URZĄD SKARBOWY W SKIERNIEWICACH"]
[null,null,null,null,null,null,null,null,"URZĄD SKARBOWY W RYPINIE","0414","URZĄD SKARBOWY W SŁUBICACH"]
[null,null,null,null,null,null,null,null,"PIERWSZY URZĄD SKARBOWY W RZESZOWIE","1816","URZĄD SKARBOWY W SŁUPCY"]
[null,null,null,null,null,null,null,null,"DRUGI URZĄD SKARBOWY W RZESZOWIE","1822","URZĄD SKARBOWY W SŁUPSKU"]
[null,null,null,null,null,null,null,null,"PODKARPACKI URZĄD SKARBOWY W RZESZOWIE","1871","URZĄD SKARBOWY W SOCHACZEWIE"]
[null,null,null,null,null,null,null,null,"URZĄD SKARBOWY W SANDOMIERZU","2610","URZĄD SKARBOWY W SOKOŁOWIE PODLASKIM"]
[null,null,null,null,null,null,null,null,"URZĄD SKARBOWY W SANOKU","1817","URZĄD SKARBOWY W SOKÓŁCE"]
[null,null,null,null,null,null,null,null,"URZĄD SKARBOWY W SĘPÓLNIE KRAJEŃSKIM","0423","URZĄD SKARBOWY W SOPOCIE"]
[null,null,null,null,null,null,null,null,"URZĄD SKARBOWY W SIEDLCACH","1426","URZĄD SKARBOWY W SOSNOWCU"]
[null,null,null,null,null,null,null,null,"URZĄD SKARBOWY W SIEMIANOWICACH ŚLĄSKICH","2428","URZĄD SKARBOWY W STALOWEJ WOLI"]
[null,null,null,null,null,null,null,null,"URZĄD SKARBOWY W SIEMIATYCZACH","2010","URZĄD SKARBOWY W STARACHOWICACH"]
[null,null,null,null,null,null,null,null,"URZĄD SKARBOWY W SIERADZU","1021","URZĄD SKARBOWY W STARGARDZIE"]
[null,null,null,null,null,null,null,null,"URZĄD SKARBOWY W SIERPCU","1427","URZĄD SKARBOWY W STAROGARDZIE GDAŃSKIM"]
[null,null,null,null,null,null,null,null,"URZĄD SKARBOWY W SKARŻYSKU-KAMIENNEJ","2611","URZĄD SKARBOWY W STASZOWIE"]
[null,null,null,null,null,null,null,null,"URZĄD SKARBOWY W SKIERNIEWICACH","1022","URZĄD SKARBOWY W STRZELCACH OPOLSKICH"]
[null,null,null,null,null,null,null,null,"URZĄD SKARBOWY W SŁUBICACH","0806","URZĄD SKARBOWY W STRZELINIE"]
[null,null,null,null,null,null,null,null,"URZĄD SKARBOWY W SŁUPCY","3028","URZĄD SKARBOWY W STRZYŻOWIE"]
[null,null,null,null,null,null,null,null,"URZĄD SKARBOWY W SŁUPSKU","2216","URZĄD SKARBOWY W SUCHEJ BESKIDZKIEJ"]
[null,null,null,null,null,null,null,null,"URZĄD SKARBOWY W SOCHACZEWIE","1428","URZĄD SKARBOWY W SULĘCINIE"]
[null,null,null,null,null,null,null,null,"URZĄD SKARBOWY W SOKOŁOWIE PODLASKIM","1429","URZĄD SKARBOWY W SUWAŁKACH"]
[null,null,null,null,null,null,null,null,"URZĄD SKARBOWY W SOKÓŁCE","2011","URZĄD SKARBOWY W SZAMOTUŁACH"]
[null,null,null,null,null,null,null,null,"URZĄD SKARBOWY W SOPOCIE","2217","PIERWSZY URZĄD SKARBOWY W SZCZECINIE"]
[null,null,null,null,null,null,null,null,"URZĄD SKARBOWY W SOSNOWCU","2429","DRUGI URZĄD SKARBOWY W SZCZECINIE"]
[null,null,null,null,null,null,null,null,"PIERWSZY ŚLĄSKI URZĄD SKARBOWY W SOSNOWCU","2471","TRZECI URZĄD SKARBOWY W SZCZECINIE"]
[null,null,null,null,null,null,null,null,"URZĄD SKARBOWY W STALOWEJ WOLI","1818","URZĄD SKARBOWY W SZCZECINKU"]
[null,null,null,null,null,null,null,null,"URZĄD SKARBOWY W STARACHOWICACH","2612","URZĄD SKARBOWY W SZCZYTNIE"]
[null,null,null,null,null,null,null,null,"URZĄD SKARBOWY W STARGARDZIE","3214","URZĄD SKARBOWY W SZYDŁOWCU"]
[null,null,null,null,null,null,null,null,"URZĄD SKARBOWY W STAROGARDZIE GDAŃSKIM","2218","URZĄD SKARBOWY W ŚREMIE"]
[null,null,null,null,null,null,null,null,"URZĄD SKARBOWY W STASZOWIE","2613","URZĄD SKARBOWY W ŚRODZIE ŚLĄSKIEJ"]
[null,null,null,null,null,null,null,null,"URZĄD SKARBOWY W STRZELCACH OPOLSKICH","1612","URZĄD SKARBOWY W ŚRODZIE WIELKOPOLSKIEJ"]
[null,null,null,null,null,null,null,null,"URZĄD SKARBOWY W STRZELINIE","0218","URZĄD SKARBOWY W ŚWIDNICY"]
[null,null,null,null,null,null,null,null,"URZĄD SKARBOWY W STRZYŻOWIE","1819","URZĄD SKARBOWY W ŚWIEBODZINIE"]
[null,null,null,null,null,null,null,null,"URZĄD SKARBOWY W SUCHEJ BESKIDZKIEJ","1222","URZĄD SKARBOWY W ŚWIECIU"]
[null,null,null,null,null,null,null,null,"URZĄD SKARBOWY W SULĘCINIE","0813","URZĄD SKARBOWY W ŚWINOUJŚCIU"]
[null,null,null,null,null,null,null,null,"URZĄD SKARBOWY W SUWAŁKACH","2012","URZĄD SKARBOWY W TARNOBRZEGU"]
[null,null,null,null,null,null,null,null,"URZĄD SKARBOWY W SZAMOTUŁACH","3029","PIERWSZY URZĄD SKARBOWY W TARNOWIE"]
[null,null,null,null,null,null,null,null,"PIERWSZY URZĄD SKARBOWY W SZCZECINIE","3215","DRUGI URZĄD SKARBOWY W TARNOWIE"]
[null,null,null,null,null,null,null,null,"DRUGI URZĄD SKARBOWY W SZCZECINIE","3216","URZĄD SKARBOWY W TARNOWSKICH GÓRACH"]
[null,null,null,null,null,null,null,null,"TRZECI URZĄD SKARBOWY W SZCZECINIE","3217","URZĄD SKARBOWY W TCZEWIE"]
[null,null,null,null,null,null,null,null,"ZACHODNIOPOMORSKI URZĄD SKARBOWY W SZCZECINIE","3271","URZĄD SKARBOWY W TOMASZOWIE LUBELSKIM"]
[null,null,null,null,null,null,null,null,"URZĄD SKARBOWY W SZCZECINKU","3218","URZĄD SKARBOWY W TOMASZOWIE MAZOWIECKIM"]
[null,null,null,null,null,null,null,null,"URZĄD SKARBOWY W SZCZYTNIE","2816","PIERWSZY URZĄD SKARBOWY W TORUNIU"]
[null,null,null,null,null,null,null,null,"URZĄD SKARBOWY W SZYDŁOWCU","1430","DRUGI URZĄD SKARBOWY W TORUNIU"]
[null,null,null,null,null,null,null,null,"URZĄD SKARBOWY W ŚREMIE","3030","URZĄD SKARBOWY W TRZEBNICY"]
[null,null,null,null,null,null,null,null,"URZĄD SKARBOWY W ŚRODZIE ŚLĄSKIEJ","0219","URZĄD SKARBOWY W TUCHOLI"]
[null,null,null,null,null,null,null,null,"URZĄD SKARBOWY W ŚRODZIE WIELKOPOLSKIEJ","3031","URZĄD SKARBOWY W TURKU"]
[null,null,null,null,null,null,null,null,"URZĄD SKARBOWY W ŚWIDNICY","0220","URZĄD SKARBOWY W TYCHACH"]
[null,null,null,null,null,null,null,null,"URZĄD SKARBOWY W ŚWIEBODZINIE","0807","URZĄD SKARBOWY W USTRZYKACH DOLNYCH"]
[null,null,null,null,null,null,null,null,"URZĄD SKARBOWY W ŚWIECIU","0415","URZĄD SKARBOWY W WADOWICACH"]
[null,null,null,null,null,null,null,null,"ŚWIĘTOKRZYSKI URZĄD SKARBOWY W KIELCACH","2671","URZĄD SKARBOWY W WAŁBRZYCHU"]
[null,null,null,null,null,null,null,null,"URZĄD SKARBOWY W ŚWINOUJŚCIU","3219","URZĄD SKARBOWY W WAŁCZU"]
[null,null,null,null,null,null,null,null,"URZĄD SKARBOWY W TARNOBRZEGU","1820","URZĄD SKARBOWY WARSZAWA-BEMOWO"]
[null,null,null,null,null,null,null,null,"PIERWSZY URZĄD SKARBOWY W TARNOWIE","1223","URZĄD SKARBOWY WARSZAWA-BIELANY"]
[null,null,null,null,null,null,null,null,"DRUGI URZĄD SKARBOWY W TARNOWIE","1224","URZĄD SKARBOWY WARSZAWA-MOKOTÓW"]
[null,null,null,null,null,null,null,null,"URZĄD SKARBOWY W TARNOWSKICH GÓRACH","2430","URZĄD SKARBOWY WARSZAWA-PRAGA"]
[null,null,null,null,null,null,null,null,"URZĄD SKARBOWY W TCZEWIE","2219","PIERWSZY URZĄD SKARBOWY WARSZAWA-ŚRÓDMIEŚCIE"]
[null,null,null,null,null,null,null,null,"URZĄD SKARBOWY W TOMASZOWIE LUBELSKIM","0618","TRZECI URZĄD SKARBOWY WARSZAWA-ŚRÓDMIEŚCIE"]
[null,null,null,null,null,null,null,null,"URZĄD SKARBOWY W TOMASZOWIE MAZOWIECKIM","1023","URZĄD SKARBOWY WARSZAWA-TARGÓWEK"]
[null,null,null,null,null,null,null,null,"PIERWSZY URZĄD SKARBOWY W TORUNIU","0416","URZĄD SKARBOWY WARSZAWA-URSYNÓW"]
[null,null,null,null,null,null,null,null,"DRUGI URZĄD SKARBOWY W TORUNIU","0417","URZĄD SKARBOWY WARSZAWA-WAWER"]
[null,null,null,null,null,null,null,null,"URZĄD SKARBOWY W TRZEBNICY","0221","URZĄD SKARBOWY WARSZAWA-WOLA"]
[null,null,null,null,null,null,null,null,"URZĄD SKARBOWY W TUCHOLI","0418","URZĄD SKARBOWY W WĄBRZEŹNIE"]
[null,null,null,null,null,null,null,null,"URZĄD SKARBOWY W TURKU","3032","URZĄD SKARBOWY W WĄGROWCU"]
[null,null,null,null,null,null,null,null,"URZĄD SKARBOWY W TYCHACH","2431","URZĄD SKARBOWY W WEJHEROWIE"]
[null,null,null,null,null,null,null,null,"URZĄD SKARBOWY W USTRZYKACH DOLNYCH","1821","URZĄD SKARBOWY W WĘGROWIE"]
[null,null,null,null,null,null,null,null,"URZĄD SKARBOWY W WADOWICACH","1225","URZĄD SKARBOWY W WIELICZCE"]
[null,null,null,null,null,null,null,null,"URZĄD SKARBOWY W WAŁBRZYCHU","0222","URZĄD SKARBOWY W WIELUNIU"]
[null,null,null,null,null,null,null,null,"URZĄD SKARBOWY W WAŁCZU","3220","URZĄD SKARBOWY W WIERUSZOWIE"]
[null,null,null,null,null,null,null,null,"URZĄD SKARBOWY WARSZAWA-BEMOWO","1431","URZĄD SKARBOWY WE WŁOCŁAWKU"]
[null,null,null,null,null,null,null,null,"URZĄD SKARBOWY WARSZAWA-BIELANY","1432","URZĄD SKARBOWY WE WŁODAWIE"]
[null,null,null,null,null,null,null,null,"URZĄD SKARBOWY WARSZAWA-MOKOTÓW","1433","URZĄD SKARBOWY WE WŁOSZCZOWIE"]
[null,null,null,null,null,null,null,null,"URZĄD SKARBOWY WARSZAWA-PRAGA","1434","URZĄD SKARBOWY W WODZISŁAWIU ŚLĄSKIM"]
[null,null,null,null,null,null,null,null,"PIERWSZY URZĄD SKARBOWY WARSZAWA-ŚRÓDMIEŚCIE","1435","URZĄD SKARBOWY W WOLSZTYNIE"]
[null,null,null,null,null,null,null,null,"DRUGI URZĄD SKARBOWY WARSZAWA-ŚRÓDMIEŚCIE","1436","URZĄD SKARBOWY W WOŁOMINIE"]
[null,null,null,null,null,null,null,null,"TRZECI URZĄD SKARBOWY WARSZAWA-ŚRÓDMIEŚCIE","1449","URZĄD SKARBOWY W WOŁOWIE"]
[null,null,null,null,null,null,null,null,"URZĄD SKARBOWY WARSZAWA-TARGÓWEK","1437","PIERWSZY URZĄD SKARBOWY WE WROCŁAWIU"]
[null,null,null,null,null,null,null,null,"URZĄD SKARBOWY WARSZAWA-URSYNÓW","1438","URZĄD SKARBOWY WROCŁAW-FABRYCZNA"]
[null,null,null,null,null,null,null,null,"URZĄD SKARBOWY WARSZAWA-WAWER","1439","URZĄD SKARBOWY WROCŁAW-KRZYKI"]
[null,null,null,null,null,null,null,null,"URZĄD SKARBOWY WARSZAWA-WOLA","1440","URZĄD SKARBOWY WROCŁAW-PSIE POLE"]
[null,null,null,null,null,null,null,null,"PIERWSZY MAZOWIECKI URZĄD SKARBOWY W WARSZAWIE","1471","URZĄD SKARBOWY WROCŁAW-STARE MIASTO"]
[null,null,null,null,null,null,null,null,"DRUGI MAZOWIECKI URZĄD SKARBOWY W WARSZAWIE","1472","URZĄD SKARBOWY WROCŁAW-ŚRÓDMIEŚCIE"]
[null,null,null,null,null,null,null,null,"URZĄD SKARBOWY W WĄBRZEŹNIE","0419","URZĄD SKARBOWY WE WRZEŚNI"]
[null,null,null,null,null,null,null,null,"URZĄD SKARBOWY W WĄGROWCU","3033","URZĄD SKARBOWY WE WSCHOWIE"]
[null,null,null,null,null,null,null,null,"URZĄD SKARBOWY W WĘGROWIE","1441","URZĄD SKARBOWY W WYSOKIEM MAZOWIECKIEM"]
[null,null,null,null,null,null,null,null,"URZĄD SKARBOWY W WIELICZCE","1226","URZĄD SKARBOWY W WYSZKOWIE"]
[null,null,null,null,null,null,null,null,"URZĄD SKARBOWY W WIELUNIU","1024","URZĄD SKARBOWY W ZABRZU"]
[null,null,null,null,null,null,null,null,"URZĄD SKARBOWY W WIERUSZOWIE","1027","URZĄD SKARBOWY W ZAKOPANEM"]
[null,null,null,null,null,null,null,null,"URZĄD SKARBOWY WE WŁOCŁAWKU","0420","URZĄD SKARBOWY W ZAMBROWIE"]
[null,null,null,null,null,null,null,null,"URZĄD SKARBOWY WE WŁODAWIE","0619","URZĄD SKARBOWY W ZAMOŚCIU"]
[null,null,null,null,null,null,null,null,"URZĄD SKARBOWY WE WŁOSZCZOWIE","2615","URZĄD SKARBOWY W ZAWIERCIU"]
[null,null,null,null,null,null,null,null,"URZĄD SKARBOWY W WODZISŁAWIU ŚLĄSKIM","2432","URZĄD SKARBOWY W ZĄBKOWICACH ŚLĄSKICH"]
[null,null,null,null,null,null,null,null,"URZĄD SKARBOWY W WOLSZTYNIE","3034","URZĄD SKARBOWY W ZDUŃSKIEJ WOLI"]
[null,null,null,null,null,null,null,null,"URZĄD SKARBOWY W WOŁOMINIE","1442","URZĄD SKARBOWY W ZGIERZU"]
[null,null,null,null,null,null,null,null,"URZĄD SKARBOWY W WOŁOWIE","0223","URZĄD SKARBOWY W ZGORZELCU"]
[null,null,null,null,null,null,null,null,"PIERWSZY URZĄD SKARBOWY WE WROCŁAWIU","0229","PIERWSZY URZĄD SKARBOWY W ZIELONEJ GÓRZE"]
[null,null,null,null,null,null,null,null,"URZĄD SKARBOWY WROCŁAW-FABRYCZNA","0224","DRUGI URZĄD SKARBOWY W ZIELONEJ GÓRZE"]
[null,null,null,null,null,null,null,null,"URZĄD SKARBOWY WROCŁAW-KRZYKI","0225","URZĄD SKARBOWY W ZŁOTORYI"]
[null,null,null,null,null,null,null,null,"URZĄD SKARBOWY WROCŁAW-PSIE POLE","0226","URZĄD SKARBOWY W ZŁOTOWIE"]
[null,null,null,null,null,null,null,null,"URZĄD SKARBOWY WROCŁAW-STARE MIASTO","0227","URZĄD SKARBOWY W ZWOLENIU"]
[null,null,null,null,null,null,null,null,"URZĄD SKARBOWY WROCŁAW-ŚRÓDMIEŚCIE","0228","URZĄD SKARBOWY W ŻAGANIU"]
[null,null,null,null,null,null,null,null,"DOLNOŚLĄSKI URZĄD SKARBOWY WE WROCŁAWIU","0271","URZĄD SKARBOWY W ŻARACH"]
[null,null,null,null,null,null,null,null,"URZĄD SKARBOWY WE WRZEŚNI","3035","URZĄD SKARBOWY W ŻNINIE"]
[null,null,null,null,null,null,null,null,"URZĄD SKARBOWY WE WSCHOWIE","0814","URZĄD SKARBOWY W ŻORACH"]
[null,null,null,null,null,null,null,null,"URZĄD SKARBOWY W WYSOKIEM MAZOWIECKIEM","2013","URZĄD SKARBOWY W ŻUROMINIE"]
[null,null,null,null,null,null,null,null,"URZĄD SKARBOWY W WYSZKOWIE","1443","URZĄD SKARBOWY W ŻYRARDOWIE"]
[null,null,null,null,null,null,null,null,"URZĄD SKARBOWY W ZABRZU","2433","URZĄD SKARBOWY W ŻYWCU"]
[null,null,null,null,null,null,null,null,"URZĄD SKARBOWY W ZAKOPANEM","1227"]
[null,null,null,null,null,null,null,null,"URZĄD SKARBOWY W ZAMBROWIE","2014"]
[null,null,null,null,null,null,null,null,"URZĄD SKARBOWY W ZAMOŚCIU","0620"]
[null,null,null,null,null,null,null,null,"URZĄD SKARBOWY W ZAWIERCIU","2434"]
[null,null,null,null,null,null,null,null,"URZĄD SKARBOWY W ZĄBKOWICACH ŚLĄSKICH","0230"]
[null,null,null,null,null,null,null,null,"URZĄD SKARBOWY W ZDUŃSKIEJ WOLI","1025"]
[null,null,null,null,null,null,null,null,"URZĄD SKARBOWY W ZGIERZU","1026"]
[null,null,null,null,null,null,null,null,"URZĄD SKARBOWY W ZGORZELCU","0231"]
[null,null,null,null,null,null,null,null,"PIERWSZY URZĄD SKARBOWY W ZIELONEJ GÓRZE","0808"]
[null,null,null,null,null,null,null,null,"DRUGI URZĄD SKARBOWY W ZIELONEJ GÓRZE","0809"]
[null,null,null,null,null,null,null,null,"LUBUSKI URZĄD SKARBOWY W ZIELONEJ GÓRZE","0871"]
[null,null,null,null,null,null,null,null,"URZĄD SKARBOWY W ZŁOTORYI","0232"]
[null,null,null,null,null,null,null,null,"URZĄD SKARBOWY W ZŁOTOWIE","3036"]
[null,null,null,null,null,null,null,null,"URZĄD SKARBOWY W ZWOLENIU","1444"]
[null,null,null,null,null,null,null,null,"URZĄD SKARBOWY W ŻAGANIU","0810"]
[null,null,null,null,null,null,null,null,"URZĄD SKARBOWY W ŻARACH","0811"]
[null,null,null,null,null,null,null,null,"URZĄD SKARBOWY W ŻNINIE","0421"]
[null,null,null,null,null,null,null,null,"URZĄD SKARBOWY W ŻORACH","2435"]
[null,null,null,null,null,null,null,null,"URZĄD SKARBOWY W ŻUROMINIE","1445"]
[null,null,null,null,null,null,null,null,"URZĄD SKARBOWY W ŻYRARDOWIE","1446"]
[null,null,null,null,null,null,null,null,"URZĄD SKARBOWY W ŻYWCU","2436"]

{"sheet":"A","index":5,"n_rows":5,"n_cols":4,"rows_kept":5,"cut":false,"hidden":true,"merged":[]}
[]
[null,{"$f":"\"Liczba danych do zapisu w pliku XML przekracza\nlimit \"&B1&\" pozycji określony dla tej wersji programu.\nZapis danych XML został zatrzymany.\nJeżeli potrzebny jest większy limit prosimy o kontakt:\n            biuro@signform.pl tel. 608 43 63 83\"","v":"Liczba danych do zapisu w pliku XML przekracza\nlimit  pozycji określony dla tej wersji programu.\nZapis danych XML został zatrzymany.\nJeżeli potrzebny jest większy limit prosimy o kontakt:\n            biuro@signform.pl tel. 608 43 63 83"},null,0]
["2027-01-01","To jest wersja DEMONSTRACYJNA programu\nktóra do pliku XML zapisuje fikcyjne dane.\nJeżeli program  jest potrzebny prosimy o kontakt:\n            biuro@signform.pl tel. 608 43 63 83\"","To jest wersja DEMONSTRACYJNA programu.\nJeżeli program  jest potrzebny prosimy o kontakt:\n            biuro@signform.pl tel. 608 43 63 83\""]
[{"$f":"\"Licencja programu wygasła \"&TEXT(A1,\"dd-mm-rrrr\") &\"\nJeżeli potrzebne jest przedłużenie prosimy o kontakt:\n            biuro@signform.pl tel. 608 43 63 83\"","v":"Licencja programu wygasła 00-01-1900\nJeżeli potrzebne jest przedłużenie prosimy o kontakt:\n            biuro@signform.pl tel. 608 43 63 83"},{"$f":"\"Brak licencji dla Nr \" & JPK!C9 &\" Prosimy o podanie NIP używanego w programie mailem biuro@signform.pl lub telefonicznie 608 43 63 83\"","v":"Brak licencji dla Nr  Prosimy o podanie NIP używanego w programie mailem biuro@signform.pl lub telefonicznie 608 43 63 83"}]
[" WERSJA DEMONSTRACYJNA","biuro@signform.pl tel. 608 43 63 83"]